Publisher Label,Publisher URI,"Supplier","Net Amount £","Organisational Unit","Merchant Category Code","Purpose","Payment Date"
"Wolverhampton City Council","http://opendatacommunities.org/id/metropolitan-district-council/wolverhampton","THE POST OFFICE","7.30","IMPACT","9402","Comms - Postage","28/09/2018"
"Wolverhampton City Council","http://opendatacommunities.org/id/metropolitan-district-council/wolverhampton","NETFLIX.COM","5.99","Technician","4899","Comms - Telephone Rental","28/09/2018"
"Wolverhampton City Council","http://opendatacommunities.org/id/metropolitan-district-council/wolverhampton","ANYLAMPUK","64.99","Technician","5200","Materials","28/09/2018"
"Wolverhampton City Council","http://opendatacommunities.org/id/metropolitan-district-council/wolverhampton","BEATSABAR MUSIC PROJEC","189.96","Youth Offending Team","5733","Equipment - Purchase","28/09/2018"
"Wolverhampton City Council","http://opendatacommunities.org/id/metropolitan-district-council/wolverhampton","BEATSABAR MUSIC PROJEC","189.96","Youth Offending Team","5733","Equipment - Purchase","28/09/2018"
"Wolverhampton City Council","http://opendatacommunities.org/id/metropolitan-district-council/wolverhampton","CURRYS S/S","150.00","Mayoral Expenses","5732","Gratuities","28/09/2018"
"Wolverhampton City Council","http://opendatacommunities.org/id/metropolitan-district-council/wolverhampton","Amazon.co.uk","13.62","EIP Locality 8","5969","Books","28/09/2018"
"Wolverhampton City Council","http://opendatacommunities.org/id/metropolitan-district-council/wolverhampton","000002200500000","250.00","Childrens with Disabilities Team","6011","Financial Assistance In Exceptional Circ","28/09/2018"
"Wolverhampton City Council","http://opendatacommunities.org/id/metropolitan-district-council/wolverhampton","STERMAT CAR AND VA","3,707.34","Towers Outdoor Education Centre","5541","Hire of Vehicles","28/09/2018"
"Wolverhampton City Council","http://opendatacommunities.org/id/metropolitan-district-council/wolverhampton","WHITEMORE REANS LTD","18.00","Aldersley Leisure Village","5251","Equipment - Purchase","28/09/2018"
"Wolverhampton City Council","http://opendatacommunities.org/id/metropolitan-district-council/wolverhampton","Amazon.co.uk","16.22","LAC Transitions Team","5969","Client Allowances","28/09/2018"
"Wolverhampton City Council","http://opendatacommunities.org/id/metropolitan-district-council/wolverhampton","Trainline","27.69","LAC Transitions Team","4112","Public Transport","28/09/2018"
"Wolverhampton City Council","http://opendatacommunities.org/id/metropolitan-district-council/wolverhampton","Central Taxis Limited","11.60","Legal Services","4121","Client Transport","28/09/2018"
"Wolverhampton City Council","http://opendatacommunities.org/id/metropolitan-district-council/wolverhampton","Amazon.co.uk","40.18","Language Studies Delivery Area","5969","Books","28/09/2018"
"Wolverhampton City Council","http://opendatacommunities.org/id/metropolitan-district-council/wolverhampton","Amazon.co.uk","233.70","Language Studies Delivery Area","5969","Books","28/09/2018"
"Wolverhampton City Council","http://opendatacommunities.org/id/metropolitan-district-council/wolverhampton","WWW.WOLVERHAMPTON.GOV.","470.58","LAC Transitions Team","9399","Client Allowances","28/09/2018"
"Wolverhampton City Council","http://opendatacommunities.org/id/metropolitan-district-council/wolverhampton","WWW.WOLVERHAMPTON.GOV.","453.84","LAC Transitions Team","9399","Client Allowances","28/09/2018"
"Wolverhampton City Council","http://opendatacommunities.org/id/metropolitan-district-council/wolverhampton","TESCO STORES 5397","4.20","EIP Locality 1","5411","Grant Payments","28/09/2018"
"Wolverhampton City Council","http://opendatacommunities.org/id/metropolitan-district-council/wolverhampton","WOLVERHAMPTON T/O","15.60","Fleet Management","4112","Public Transport","28/09/2018"
"Wolverhampton City Council","http://opendatacommunities.org/id/metropolitan-district-council/wolverhampton","Amazon.co.uk","78.73","Licensing - General","5969","Equipment - Purchase","28/09/2018"
"Wolverhampton City Council","http://opendatacommunities.org/id/metropolitan-district-council/wolverhampton","CUMMINGS BROTHERS LOCK","12.50","Northicote Farm","7399","Equipment - Purchase","28/09/2018"
"Wolverhampton City Council","http://opendatacommunities.org/id/metropolitan-district-council/wolverhampton","B & M RETAIL","1.49","Technician","5310","Equipment - Purchase","27/09/2018"
"Wolverhampton City Council","http://opendatacommunities.org/id/metropolitan-district-council/wolverhampton","B & Q 1169","11.50","Technician","5211","Materials","27/09/2018"
"Wolverhampton City Council","http://opendatacommunities.org/id/metropolitan-district-council/wolverhampton","LIVEMUSIC.CO.UK","138.00","Visitor Economy - Development","7399","Equipment - Purchase","27/09/2018"
"Wolverhampton City Council","http://opendatacommunities.org/id/metropolitan-district-council/wolverhampton","EB  EVENT SAFETY AMP S","128.00","Visitor Economy - Development","7399","Equipment - Purchase","27/09/2018"
"Wolverhampton City Council","http://opendatacommunities.org/id/metropolitan-district-council/wolverhampton","WM MORRISON FOOD.COM","72.21","Discretionary Fund","5411","Materials","27/09/2018"
"Wolverhampton City Council","http://opendatacommunities.org/id/metropolitan-district-council/wolverhampton","Virgin Trains","146.80","Quality Assurance & Policies","4112","Public Transport","27/09/2018"
"Wolverhampton City Council","http://opendatacommunities.org/id/metropolitan-district-council/wolverhampton","POST OFFICE COUNTER","1.87","Research & Development","9402","Comms - Postage","27/09/2018"
"Wolverhampton City Council","http://opendatacommunities.org/id/metropolitan-district-council/wolverhampton","LOYD 89 CHURCH STREET","220.00","EIP Locality 2","6011","Grant Payments","27/09/2018"
"Wolverhampton City Council","http://opendatacommunities.org/id/metropolitan-district-council/wolverhampton","000002200500000","250.00","CIN/CP Social Work Unit - Area 6","6011","Financial Assistance In Exceptional Circ","27/09/2018"
"Wolverhampton City Council","http://opendatacommunities.org/id/metropolitan-district-council/wolverhampton","AMZ Amazon.co.uk","-160.00","Fostering Team & Allowances","5969","Equipment - Purchase","27/09/2018"
"Wolverhampton City Council","http://opendatacommunities.org/id/metropolitan-district-council/wolverhampton","CLOCKING SYSTEM","194.00","Ground Maintenance East","5085","Equipment - Purchase","27/09/2018"
"Wolverhampton City Council","http://opendatacommunities.org/id/metropolitan-district-council/wolverhampton","BILLBROOK MEDICAL CENT","75.00","Occupational Health","8011","Services - Professional Fees","27/09/2018"
"Wolverhampton City Council","http://opendatacommunities.org/id/metropolitan-district-council/wolverhampton","WILKO RETAIL LIMIT","4.62","Mayoral Expenses","5722","Equipment - Purchase","27/09/2018"
"Wolverhampton City Council","http://opendatacommunities.org/id/metropolitan-district-council/wolverhampton","HMCOURTS-SERVICE.G","20.00","LAC Transitions Team","9222","Client Allowances","27/09/2018"
"Wolverhampton City Council","http://opendatacommunities.org/id/metropolitan-district-council/wolverhampton","ASDA SUPERSTORE","20.28","Youth Offending Team","5411","Provisions (Not for resale)","27/09/2018"
"Wolverhampton City Council","http://opendatacommunities.org/id/metropolitan-district-council/wolverhampton","TIMPSON LTD","19.50","Public Health Support Costs","7251","Fixtures and Fittings - R&M","27/09/2018"
"Wolverhampton City Council","http://opendatacommunities.org/id/metropolitan-district-council/wolverhampton","AMZN Mktp UK","12.49","Upper Pendeford Farm Childrens Home","5942","Educ Trips, Holidays, Outings, Activity","27/09/2018"
"Wolverhampton City Council","http://opendatacommunities.org/id/metropolitan-district-council/wolverhampton","AMZN Mktp UK","132.50","Upper Pendeford Farm Childrens Home","5942","Educ Trips, Holidays, Outings, Activity","27/09/2018"
"Wolverhampton City Council","http://opendatacommunities.org/id/metropolitan-district-council/wolverhampton","POST OFFICE COUNTER","25.00","Safeguarding Partnership Board","9402","R5010","27/09/2018"
"Wolverhampton City Council","http://opendatacommunities.org/id/metropolitan-district-council/wolverhampton","ROYAL CARPETS","316.67","LAC Transitions Team","5713","Client Allowances","27/09/2018"
"Wolverhampton City Council","http://opendatacommunities.org/id/metropolitan-district-council/wolverhampton","SHROPSHIRESTAR.COM","12.98","Archives","5994","Books","27/09/2018"
"Wolverhampton City Council","http://opendatacommunities.org/id/metropolitan-district-council/wolverhampton","CITY DIRECT","120.00","CIN/CP Social Work Unit - Area 7","8299","Section 17","27/09/2018"
"Wolverhampton City Council","http://opendatacommunities.org/id/metropolitan-district-council/wolverhampton","Trainline","92.46","Children & Young People Support Costs","4112","Public Transport","27/09/2018"
"Wolverhampton City Council","http://opendatacommunities.org/id/metropolitan-district-council/wolverhampton","123 REG R/T","39.96","Technical Support","5968","Subscriptions","27/09/2018"
"Wolverhampton City Council","http://opendatacommunities.org/id/metropolitan-district-council/wolverhampton","WICKES","5.83","Learning Disabilities Management","5211","Equipment - R & M","27/09/2018"
"Wolverhampton City Council","http://opendatacommunities.org/id/metropolitan-district-council/wolverhampton","Trainline","51.51","CIN/CP Social Work Unit - Area 4","4112","Section 17","27/09/2018"
"Wolverhampton City Council","http://opendatacommunities.org/id/metropolitan-district-council/wolverhampton","ANGEL SPRINGS LTD","20.60","Music Support Team","5811","Catering","27/09/2018"
"Wolverhampton City Council","http://opendatacommunities.org/id/metropolitan-district-council/wolverhampton","Amazon.co.uk","11.64","CIN/CP Social Work Unit - Area 8","5969","Section 17","27/09/2018"
"Wolverhampton City Council","http://opendatacommunities.org/id/metropolitan-district-council/wolverhampton","Amazon.co.uk","21.52","Private Sector Housing","5969","Equipment - Purchase","27/09/2018"
"Wolverhampton City Council","http://opendatacommunities.org/id/metropolitan-district-council/wolverhampton","Amazon.co.uk","20.62","Planning","5969","Equipment - Purchase","27/09/2018"
"Wolverhampton City Council","http://opendatacommunities.org/id/metropolitan-district-council/wolverhampton","WICKES","55.80","Northicote Farm","5211","Materials","27/09/2018"
"Wolverhampton City Council","http://opendatacommunities.org/id/metropolitan-district-council/wolverhampton","POST OFFICE COUNTER","8.60","Adoption and Residence Team & Allowances","9402","Comms - Postage","26/09/2018"
"Wolverhampton City Council","http://opendatacommunities.org/id/metropolitan-district-council/wolverhampton","TESCO STORES 5194","-4.00","Towers Outdoor Education Centre","5411","Provisions (Not for resale)","26/09/2018"
"Wolverhampton City Council","http://opendatacommunities.org/id/metropolitan-district-council/wolverhampton","HALFORDS 0549","31.66","Towers Outdoor Education Centre","5940","Equipment - Purchase","26/09/2018"
"Wolverhampton City Council","http://opendatacommunities.org/id/metropolitan-district-council/wolverhampton","B & Q 1112","20.17","Towers Outdoor Education Centre","5211","Fixtures and Fittings - Purchases","26/09/2018"
"Wolverhampton City Council","http://opendatacommunities.org/id/metropolitan-district-council/wolverhampton","WWW.DOMINOS.CO.UK","29.98","B-Safe","5812","Catering","26/09/2018"
"Wolverhampton City Council","http://opendatacommunities.org/id/metropolitan-district-council/wolverhampton","HOME & MOTORSAVE LIMIT","6.65","Aldersley Leisure Village","5039","Equipment - R & M","26/09/2018"
"Wolverhampton City Council","http://opendatacommunities.org/id/metropolitan-district-council/wolverhampton","SAINSBURYS PFS (1340)","3.33","Mayoral Expenses","5541","Vehicle Maintenance - Repairs","26/09/2018"
"Wolverhampton City Council","http://opendatacommunities.org/id/metropolitan-district-council/wolverhampton","Trainline","167.34","LAC Transitions Team","4112","Client Allowances","26/09/2018"
"Wolverhampton City Council","http://opendatacommunities.org/id/metropolitan-district-council/wolverhampton","B&M RETAIL","120.06","LAC Transitions Team","5310","Client Allowances","26/09/2018"
"Wolverhampton City Council","http://opendatacommunities.org/id/metropolitan-district-council/wolverhampton","B&M RETAIL","239.70","LAC Transitions Team","5310","Client Allowances","26/09/2018"
"Wolverhampton City Council","http://opendatacommunities.org/id/metropolitan-district-council/wolverhampton","DUNELM (SOFT FURNISHIN","48.05","LAC Transitions Team","5714","Client Allowances","26/09/2018"
"Wolverhampton City Council","http://opendatacommunities.org/id/metropolitan-district-council/wolverhampton","CT WOLVERHAMPTON","85.00","LAC Transitions Team","8398","Client Allowances","26/09/2018"
"Wolverhampton City Council","http://opendatacommunities.org/id/metropolitan-district-council/wolverhampton","WEST COAST TRAINS","10.00","Cemeteries","7523","Car Allowances","26/09/2018"
"Wolverhampton City Council","http://opendatacommunities.org/id/metropolitan-district-council/wolverhampton","WEST COAST TRAINS","21.42","Cemeteries","4112","Public Transport","26/09/2018"
"Wolverhampton City Council","http://opendatacommunities.org/id/metropolitan-district-council/wolverhampton","Trainline","9.09","Service Director City Environment","4112","Public Transport","26/09/2018"
"Wolverhampton City Council","http://opendatacommunities.org/id/metropolitan-district-council/wolverhampton","SCREWFIX WOLVERHAM","6.47","Wholesale Market Facilities Management","5211","Materials","26/09/2018"
"Wolverhampton City Council","http://opendatacommunities.org/id/metropolitan-district-council/wolverhampton","WILKO RETAIL LIMIT","9.50","Service Wide","5722","Equipment - Purchase","26/09/2018"
"Wolverhampton City Council","http://opendatacommunities.org/id/metropolitan-district-council/wolverhampton","PAYPAL  JEXTENSIONS","45.92","ICT Services","5734","Computing - Purchase of Software","26/09/2018"
"Wolverhampton City Council","http://opendatacommunities.org/id/metropolitan-district-council/wolverhampton","POUNDSTRETCHER 703","27.55","LAC Transitions Team","5714","Client Allowances","26/09/2018"
"Wolverhampton City Council","http://opendatacommunities.org/id/metropolitan-district-council/wolverhampton","CARVER/WOLVERHAMPTON/L","8.91","Culwell Street Depot","5211","Equipment - Purchase","26/09/2018"
"Wolverhampton City Council","http://opendatacommunities.org/id/metropolitan-district-council/wolverhampton","WEST MID TRAVEL","446.90","Community Enablement","4131","Public Transport","26/09/2018"
"Wolverhampton City Council","http://opendatacommunities.org/id/metropolitan-district-council/wolverhampton","TIMPSON LTD","15.00","Public Health Support Costs","7251","Fixtures and Fittings - R&M","26/09/2018"
"Wolverhampton City Council","http://opendatacommunities.org/id/metropolitan-district-council/wolverhampton","BOOTS 6122","18.75","EIP Locality 3","5912","Grant Payments","26/09/2018"
"Wolverhampton City Council","http://opendatacommunities.org/id/metropolitan-district-council/wolverhampton","ASDA GROCERIES ONLINE","-3.16","Ernest Bold Court","5411","Provisions (Not for resale)","26/09/2018"
"Wolverhampton City Council","http://opendatacommunities.org/id/metropolitan-district-council/wolverhampton","WWW.WMCA.CO.UK","1,304.00","Travel Scratch Cards & Rail Warrants","4112","Public Transport","26/09/2018"
"Wolverhampton City Council","http://opendatacommunities.org/id/metropolitan-district-council/wolverhampton","UNTOUCHABLES","8.00","Education Catering - General Overheads","5231","Materials","26/09/2018"
"Wolverhampton City Council","http://opendatacommunities.org/id/metropolitan-district-council/wolverhampton","AMZN Mktp UK","9.67","EIP Locality 7","5942","Equipment - Purchase","26/09/2018"
"Wolverhampton City Council","http://opendatacommunities.org/id/metropolitan-district-council/wolverhampton","PO LOW HILL 1592","100.00","EIP Locality 7","6011","Grant Payments","26/09/2018"
"Wolverhampton City Council","http://opendatacommunities.org/id/metropolitan-district-council/wolverhampton","WOLVERHAMPTON CC","1.25","Headstart Phase 3","7523","Parking Fees","25/09/2018"
"Wolverhampton City Council","http://opendatacommunities.org/id/metropolitan-district-council/wolverhampton","WINSTANLEY HOUSE L","50.00","Head of Service Specialist Int Support","7011","Services - Supplies & Services to users","25/09/2018"
"Wolverhampton City Council","http://opendatacommunities.org/id/metropolitan-district-council/wolverhampton","WWW.WOLVERHAMPTON.GOV.","15.00","EIP Locality 8","9399","Grant Payments","25/09/2018"
"Wolverhampton City Council","http://opendatacommunities.org/id/metropolitan-district-council/wolverhampton","LOYD 37 CHURCH STREET","300.00","EIP Locality 8","6011","Grant Payments","25/09/2018"
"Wolverhampton City Council","http://opendatacommunities.org/id/metropolitan-district-council/wolverhampton","TESCO STORES 5194","204.98","Towers Outdoor Education Centre","5411","Provisions (Not for resale)","25/09/2018"
"Wolverhampton City Council","http://opendatacommunities.org/id/metropolitan-district-council/wolverhampton","WP-CENTRAL TAXIS L","64.80","Fostering Team & Allowances","4121","Client Transport","25/09/2018"
"Wolverhampton City Council","http://opendatacommunities.org/id/metropolitan-district-council/wolverhampton","AMZN MKTP UK AMAZON.CO","5.81","WV Active Marketing","5942","Books","25/09/2018"
"Wolverhampton City Council","http://opendatacommunities.org/id/metropolitan-district-council/wolverhampton","FACEBK JK5ZSHWAR2","501.21","Communications & Marketing - General","7311","Marketing \ Non-staff advertising","25/09/2018"
"Wolverhampton City Council","http://opendatacommunities.org/id/metropolitan-district-council/wolverhampton","123-REG.CO.UK","103.86","City Direct","4816","Computing - Purchase of Software","25/09/2018"
"Wolverhampton City Council","http://opendatacommunities.org/id/metropolitan-district-council/wolverhampton","Trainline","31.00","City Direct","4112","Public Transport","25/09/2018"
"Wolverhampton City Council","http://opendatacommunities.org/id/metropolitan-district-council/wolverhampton","AMZ Amazon Business UK","-17.93","Strategic ICTS (ICT Serv Budget)","5969","Equipment - Purchase","25/09/2018"
"Wolverhampton City Council","http://opendatacommunities.org/id/metropolitan-district-council/wolverhampton","SQ  PLATINUM CHAUFFEUR","400.00","LAC Team","4121","Client Transport","25/09/2018"
"Wolverhampton City Council","http://opendatacommunities.org/id/metropolitan-district-council/wolverhampton","AMZN Mktp UK","9.70","EIP Locality 5","5942","Provisions (Not for resale)","25/09/2018"
"Wolverhampton City Council","http://opendatacommunities.org/id/metropolitan-district-council/wolverhampton","AMZN Mktp UK","8.79","EIP Locality 5","5942","Provisions (Not for resale)","25/09/2018"
"Wolverhampton City Council","http://opendatacommunities.org/id/metropolitan-district-council/wolverhampton","AMZN Mktp UK","43.50","EIP Locality 5","5942","Provisions (Not for resale)","25/09/2018"
"Wolverhampton City Council","http://opendatacommunities.org/id/metropolitan-district-council/wolverhampton","CUMMINGS BROTHERS LOCK","27.08","Culwell Street Depot","7399","R&M - Departmental planned (external)","25/09/2018"
"Wolverhampton City Council","http://opendatacommunities.org/id/metropolitan-district-council/wolverhampton","AMZN Mktp UK","107.99","EIP Locality 1","5942","Grant Payments","25/09/2018"
"Wolverhampton City Council","http://opendatacommunities.org/id/metropolitan-district-council/wolverhampton","AMZN Mktp UK","20.82","EIP Locality 1","5942","Grant Payments","25/09/2018"
"Wolverhampton City Council","http://opendatacommunities.org/id/metropolitan-district-council/wolverhampton","Cross Country Trains","7.80","Head of Strategic Commissioning � People","4112","Public Transport","25/09/2018"
"Wolverhampton City Council","http://opendatacommunities.org/id/metropolitan-district-council/wolverhampton","HUGHES","234.00","EIP Locality 3","5732","Grant Payments","25/09/2018"
"Wolverhampton City Council","http://opendatacommunities.org/id/metropolitan-district-council/wolverhampton","ASDA GROCERIES ONLINE","-.32","Ernest Bold Court","5411","Provisions (Not for resale)","25/09/2018"
"Wolverhampton City Council","http://opendatacommunities.org/id/metropolitan-district-council/wolverhampton","ASDA GROCERIES ONLINE","5.00","Ernest Bold Court","5411","Services - Fees and Charges","25/09/2018"
"Wolverhampton City Council","http://opendatacommunities.org/id/metropolitan-district-council/wolverhampton","ASDA GROCERIES ONLINE","77.90","Ernest Bold Court","5411","Provisions (Not for resale)","25/09/2018"
"Wolverhampton City Council","http://opendatacommunities.org/id/metropolitan-district-council/wolverhampton","PAYPAL  RTPI","126.00","Central Training","8398","Training Expenses","25/09/2018"
"Wolverhampton City Council","http://opendatacommunities.org/id/metropolitan-district-council/wolverhampton","NO 5 CHAMBERS LTD","65.00","Central Training","8111","Training Expenses","25/09/2018"
"Wolverhampton City Council","http://opendatacommunities.org/id/metropolitan-district-council/wolverhampton","NO 5 CHAMBERS LTD","70.00","Central Training","8111","Training Expenses","25/09/2018"
"Wolverhampton City Council","http://opendatacommunities.org/id/metropolitan-district-council/wolverhampton","WHITEPAPER.CO.UK","249.00","Central Training","5734","Training Expenses","25/09/2018"
"Wolverhampton City Council","http://opendatacommunities.org/id/metropolitan-district-council/wolverhampton","J VAN VLIET BIRMINGHAM","48.40","Creative Studies Delivery Area","5399","Materials for resale","25/09/2018"
"Wolverhampton City Council","http://opendatacommunities.org/id/metropolitan-district-council/wolverhampton","J VAN VLIET BIRMINGHAM","50.13","Creative Studies Delivery Area","5399","Materials for resale","25/09/2018"
"Wolverhampton City Council","http://opendatacommunities.org/id/metropolitan-district-council/wolverhampton","Trainline","9.75","CIN/CP Social Work Unit - Area 8","4112","Section 17","25/09/2018"
"Wolverhampton City Council","http://opendatacommunities.org/id/metropolitan-district-council/wolverhampton","PO LOW HILL 1592","200.00","EIP Locality 7","6011","Grant Payments","25/09/2018"
"Wolverhampton City Council","http://opendatacommunities.org/id/metropolitan-district-council/wolverhampton","AMZN Mktp UK","16.65","EIP Locality 7","5942","Stationery","25/09/2018"
"Wolverhampton City Council","http://opendatacommunities.org/id/metropolitan-district-council/wolverhampton","DULUX DECORATOR CENTRE","547.34","Technician","5198","Materials","25/09/2018"
"Wolverhampton City Council","http://opendatacommunities.org/id/metropolitan-district-council/wolverhampton","Trainline","15.20","Audience Development","4112","Public Transport","25/09/2018"
"Wolverhampton City Council","http://opendatacommunities.org/id/metropolitan-district-council/wolverhampton","ARGOS LTD","48.33","Children & Young People Support Costs","5310","Client Allowances","24/09/2018"
"Wolverhampton City Council","http://opendatacommunities.org/id/metropolitan-district-council/wolverhampton","Trainline","48.26","School Standards Training & Safeguard","4112","Public Transport","24/09/2018"
"Wolverhampton City Council","http://opendatacommunities.org/id/metropolitan-district-council/wolverhampton","POST OFFICE COUNTER","6.50","CIN/CP Social Work Unit - Area 5","9402","Section 17","24/09/2018"
"Wolverhampton City Council","http://opendatacommunities.org/id/metropolitan-district-council/wolverhampton","Virgin Trains","-40.80","Adoption and Residence Team & Allowances","4112","Public Transport","24/09/2018"
"Wolverhampton City Council","http://opendatacommunities.org/id/metropolitan-district-council/wolverhampton","Virgin Trains","40.80","Adoption and Residence Team & Allowances","4112","Public Transport","24/09/2018"
"Wolverhampton City Council","http://opendatacommunities.org/id/metropolitan-district-council/wolverhampton","Virgin Trains","40.80","Adoption and Residence Team & Allowances","4112","Public Transport","24/09/2018"
"Wolverhampton City Council","http://opendatacommunities.org/id/metropolitan-district-council/wolverhampton","Virgin Trains","6.20","Adoption and Residence Team & Allowances","4112","Public Transport","24/09/2018"
"Wolverhampton City Council","http://opendatacommunities.org/id/metropolitan-district-council/wolverhampton","Amazon.co.uk","160.00","Fostering Team & Allowances","5969","Equipment - Purchase","24/09/2018"
"Wolverhampton City Council","http://opendatacommunities.org/id/metropolitan-district-council/wolverhampton","GOOGLE  ADS9680351324","501.44","Communications & Marketing - General","5968","Subscriptions","24/09/2018"
"Wolverhampton City Council","http://opendatacommunities.org/id/metropolitan-district-council/wolverhampton","GOOGLE  ADS9680351324","500.00","Communications & Marketing - General","5968","Subscriptions","24/09/2018"
"Wolverhampton City Council","http://opendatacommunities.org/id/metropolitan-district-council/wolverhampton","DC PAYMENTS","40.00","Headstart - Young People Engagement","6011","Financial Assistance In Exceptional Circ","24/09/2018"
"Wolverhampton City Council","http://opendatacommunities.org/id/metropolitan-district-council/wolverhampton","HEREFORDSHIRE COUNCIL","12.00","LAC Transitions Team","9399","Client Allowances","24/09/2018"
"Wolverhampton City Council","http://opendatacommunities.org/id/metropolitan-district-council/wolverhampton","TIMPSON LTD","58.50","Youth Offending Team","7251","Fixtures and Fittings - R&M","24/09/2018"
"Wolverhampton City Council","http://opendatacommunities.org/id/metropolitan-district-council/wolverhampton","TIMPSON LTD",".01","Youth Offending Team","7251","Fixtures and Fittings - R&M","24/09/2018"
"Wolverhampton City Council","http://opendatacommunities.org/id/metropolitan-district-council/wolverhampton","PREMIER INN","169.50","Former Courtaulds Site","3811","Services - Supplies & Services to users","24/09/2018"
"Wolverhampton City Council","http://opendatacommunities.org/id/metropolitan-district-council/wolverhampton","Virgin Trains","81.10","Former Courtaulds Site","4112","Public Transport","24/09/2018"
"Wolverhampton City Council","http://opendatacommunities.org/id/metropolitan-district-council/wolverhampton","APPLE ONLINE STORE GBP","1,122.50","Strategic ICTS (ICT Serv Budget)","5732","Equipment - Purchase","24/09/2018"
"Wolverhampton City Council","http://opendatacommunities.org/id/metropolitan-district-council/wolverhampton","ASDA GROCERIES ONLINE","-.20","Upper Pendeford Farm Childrens Home","5411","Provisions (Not for resale)","24/09/2018"
"Wolverhampton City Council","http://opendatacommunities.org/id/metropolitan-district-council/wolverhampton","ASDA GROCERIES ONLINE","146.32","Upper Pendeford Farm Childrens Home","5411","Provisions (Not for resale)","24/09/2018"
"Wolverhampton City Council","http://opendatacommunities.org/id/metropolitan-district-council/wolverhampton","Amazon.co.uk","122.56","Language Studies Delivery Area","5969","Books","24/09/2018"
"Wolverhampton City Council","http://opendatacommunities.org/id/metropolitan-district-council/wolverhampton","Amazon.co.uk","147.04","Language Studies Delivery Area","5969","Books","24/09/2018"
"Wolverhampton City Council","http://opendatacommunities.org/id/metropolitan-district-council/wolverhampton","AMZN Mktp UK","13.03","Service Wide","5942","Equipment - Purchase","24/09/2018"
"Wolverhampton City Council","http://opendatacommunities.org/id/metropolitan-district-council/wolverhampton","AMZN Mktp UK","81.34","Service Wide","5942","Equipment - Purchase","24/09/2018"
"Wolverhampton City Council","http://opendatacommunities.org/id/metropolitan-district-council/wolverhampton","Amazon.co.uk","346.52","Language Studies Delivery Area","5969","Books","24/09/2018"
"Wolverhampton City Council","http://opendatacommunities.org/id/metropolitan-district-council/wolverhampton","Amazon.co.uk","18.01","Language Studies Delivery Area","5969","Books","24/09/2018"
"Wolverhampton City Council","http://opendatacommunities.org/id/metropolitan-district-council/wolverhampton","Amazon.co.uk","18.00","Language Studies Delivery Area","5969","Books","24/09/2018"
"Wolverhampton City Council","http://opendatacommunities.org/id/metropolitan-district-council/wolverhampton","Amazon.co.uk","34.25","Language Studies Delivery Area","5969","Books","24/09/2018"
"Wolverhampton City Council","http://opendatacommunities.org/id/metropolitan-district-council/wolverhampton","Amazon.co.uk","44.12","Language Studies Delivery Area","5969","Books","24/09/2018"
"Wolverhampton City Council","http://opendatacommunities.org/id/metropolitan-district-council/wolverhampton","AMZN Mktp UK","47.39","Work Related Studies","5942","Books","24/09/2018"
"Wolverhampton City Council","http://opendatacommunities.org/id/metropolitan-district-council/wolverhampton","CLAIRE","40.00","Bilston Urban Village�site remediation","8398","Services - Professional Fees","24/09/2018"
"Wolverhampton City Council","http://opendatacommunities.org/id/metropolitan-district-council/wolverhampton","ARGOS RETAIL GROUP","22.98","EIP Locality 1","5310","Grant Payments","24/09/2018"
"Wolverhampton City Council","http://opendatacommunities.org/id/metropolitan-district-council/wolverhampton","Amazon.co.uk","13.44","EIP Locality 1","5969","Equipment - Purchase","24/09/2018"
"Wolverhampton City Council","http://opendatacommunities.org/id/metropolitan-district-council/wolverhampton","Wix.com","186.26","Technical Support","5817","Computing - Purchase of Software","24/09/2018"
"Wolverhampton City Council","http://opendatacommunities.org/id/metropolitan-district-council/wolverhampton","WWW.ARGOS.CO.UK","169.92","EIP Locality 3","5310","Grant Payments","24/09/2018"
"Wolverhampton City Council","http://opendatacommunities.org/id/metropolitan-district-council/wolverhampton","ASDA GROCERIES ONLINE","-.08","Ernest Bold Court","5411","Provisions (Not for resale)","24/09/2018"
"Wolverhampton City Council","http://opendatacommunities.org/id/metropolitan-district-council/wolverhampton","ASDA GROCERIES ONLINE","74.95","Ernest Bold Court","5411","Provisions (Not for resale)","24/09/2018"
"Wolverhampton City Council","http://opendatacommunities.org/id/metropolitan-district-council/wolverhampton","Virgin Trains","144.20","City Centre","4112","Services - Fees and Charges","24/09/2018"
"Wolverhampton City Council","http://opendatacommunities.org/id/metropolitan-district-council/wolverhampton","MBL SEMINARS","99.00","Central Training","8299","Training Expenses","24/09/2018"
"Wolverhampton City Council","http://opendatacommunities.org/id/metropolitan-district-council/wolverhampton","GAME RETAIL","227.97","Upper Pendeford Farm Childrens Home","5945","Educ Trips, Holidays, Outings, Activity","24/09/2018"
"Wolverhampton City Council","http://opendatacommunities.org/id/metropolitan-district-council/wolverhampton","Virgin Trains","5.75","Members Expenses","4112","Public Transport","24/09/2018"
"Wolverhampton City Council","http://opendatacommunities.org/id/metropolitan-district-council/wolverhampton","CARVER/WOLVERHAMPTON/L","-138.58","Northicote Farm","5211","Materials","24/09/2018"
"Wolverhampton City Council","http://opendatacommunities.org/id/metropolitan-district-council/wolverhampton","ROYAL BK OF SCOTLAND","250.00","CIN/CP Social Work Unit - Area 6","6011","No Recourse to Public Funds","21/09/2018"
"Wolverhampton City Council","http://opendatacommunities.org/id/metropolitan-district-council/wolverhampton","Virgin Trains","124.05","Adoption and Residence Team & Allowances","4112","Public Transport","21/09/2018"
"Wolverhampton City Council","http://opendatacommunities.org/id/metropolitan-district-council/wolverhampton","O E METCALFE","73.08","Towers Outdoor Education Centre","5499","Provisions (Not for resale)","21/09/2018"
"Wolverhampton City Council","http://opendatacommunities.org/id/metropolitan-district-council/wolverhampton","SPAR SIOP TANDDERWEN","67.72","Towers Outdoor Education Centre","5411","Provisions (Not for resale)","21/09/2018"
"Wolverhampton City Council","http://opendatacommunities.org/id/metropolitan-district-council/wolverhampton","AMZN Mktp UK","18.31","Education And Access","5942","Materials","21/09/2018"
"Wolverhampton City Council","http://opendatacommunities.org/id/metropolitan-district-council/wolverhampton","SPECSAVERSEVOUGB-","900.48","HR Advice","8043","Services - Professional Fees","21/09/2018"
"Wolverhampton City Council","http://opendatacommunities.org/id/metropolitan-district-council/wolverhampton","AMZN MKTP UK AMAZON.CO","18.48","Bert Williams Leisure Centre","5942","Books","21/09/2018"
"Wolverhampton City Council","http://opendatacommunities.org/id/metropolitan-district-council/wolverhampton","THE EDGE ADVENTURE ACT","525.00","Mayoral Expenses","7011","Educ Trips, Holidays, Outings, Activity","21/09/2018"
"Wolverhampton City Council","http://opendatacommunities.org/id/metropolitan-district-council/wolverhampton","REGISTRARS OFFICE","20.00","Adoption and Residence Team & Allowances","8299","Services - Fees and Charges","21/09/2018"
"Wolverhampton City Council","http://opendatacommunities.org/id/metropolitan-district-council/wolverhampton","ITUNES.COM/BILL",".79","Strategic ICTS (ICT Serv Budget)","5735","Computing - Purchase of Software","21/09/2018"
"Wolverhampton City Council","http://opendatacommunities.org/id/metropolitan-district-council/wolverhampton","WEBFLOW.COM","329.12","Strategic ICTS (ICT Serv Budget)","7372","Services - Professional Fees","21/09/2018"
"Wolverhampton City Council","http://opendatacommunities.org/id/metropolitan-district-council/wolverhampton","AMZN Mktp UK","77.46","Central Baths","5942","Equipment - Purchase","21/09/2018"
"Wolverhampton City Council","http://opendatacommunities.org/id/metropolitan-district-council/wolverhampton","Amazon.co.uk","7.12","Mental Health Assessment & Care Mgmt","5969","Equipment - Purchase","21/09/2018"
"Wolverhampton City Council","http://opendatacommunities.org/id/metropolitan-district-council/wolverhampton","WWW.ARGOS.CO.UK","43.94","Creative Studies Delivery Area","5310","Equipment - Purchase","21/09/2018"
"Wolverhampton City Council","http://opendatacommunities.org/id/metropolitan-district-council/wolverhampton","WOLVERHAMPTON T/O","6.30","Art Gallery","4112","Public Transport","21/09/2018"
"Wolverhampton City Council","http://opendatacommunities.org/id/metropolitan-district-council/wolverhampton","Amazon.co.uk","12.94","Archives","5969","Books","21/09/2018"
"Wolverhampton City Council","http://opendatacommunities.org/id/metropolitan-district-council/wolverhampton","TESCO STORES 5397","5.32","EIP Locality 1","5411","Grant Payments","21/09/2018"
"Wolverhampton City Council","http://opendatacommunities.org/id/metropolitan-district-council/wolverhampton","WIX.COM","186.26","Technical Support","5968","Subscriptions","21/09/2018"
"Wolverhampton City Council","http://opendatacommunities.org/id/metropolitan-district-council/wolverhampton","HUGHES","159.75","EIP Locality 3","5732","Grant Payments","21/09/2018"
"Wolverhampton City Council","http://opendatacommunities.org/id/metropolitan-district-council/wolverhampton","YMLP.COM","105.00","Arts Publicity","7372","Computing - Purchase of Software","21/09/2018"
"Wolverhampton City Council","http://opendatacommunities.org/id/metropolitan-district-council/wolverhampton","WP-CENTRAL TAXIS L","460.00","LAC Team","4121","Client Transport","21/09/2018"
"Wolverhampton City Council","http://opendatacommunities.org/id/metropolitan-district-council/wolverhampton","Amazon.co.uk","11.12","Waste Coll & Recycling Serv General","5969","Equipment - Purchase","21/09/2018"
"Wolverhampton City Council","http://opendatacommunities.org/id/metropolitan-district-council/wolverhampton","TIMPSON LTD","10.00","Civic Centre Catering","7251","Fixtures and Fittings - R&M","21/09/2018"
"Wolverhampton City Council","http://opendatacommunities.org/id/metropolitan-district-council/wolverhampton","THE COAL AUTHORITY","95.16","Disposal Costs","9399","Services - Professional Fees","21/09/2018"
"Wolverhampton City Council","http://opendatacommunities.org/id/metropolitan-district-council/wolverhampton","HTTP://WWW.DERBYSHIRE.","7.00","Head of Service - CINCP","9399","Services - Professional Fees","21/09/2018"
"Wolverhampton City Council","http://opendatacommunities.org/id/metropolitan-district-council/wolverhampton","REGISTRARS OFFICE","20.00","Head of Service - CINCP","8299","Services - Professional Fees","21/09/2018"
"Wolverhampton City Council","http://opendatacommunities.org/id/metropolitan-district-council/wolverhampton","HMCOURTS-SERVICE.G","62.50","Mental Health Assessment & Care Mgmt","9222","Services - Fees and Charges","21/09/2018"
"Wolverhampton City Council","http://opendatacommunities.org/id/metropolitan-district-council/wolverhampton","Virgin Trains","17.40","Members Expenses","4112","Public Transport","21/09/2018"
"Wolverhampton City Council","http://opendatacommunities.org/id/metropolitan-district-council/wolverhampton","CARVER/WOLVERHAMPTON/L","4.27","Northicote Farm","5211","Materials","21/09/2018"
"Wolverhampton City Council","http://opendatacommunities.org/id/metropolitan-district-council/wolverhampton","POST OFFICE COUNTER","1.77","EIP Locality 3","9402","Comms - Postage","21/09/2018"
"Wolverhampton City Council","http://opendatacommunities.org/id/metropolitan-district-council/wolverhampton","LOYD 37 CHURCH STREET","200.00","EIP Locality 8","6011","Grant Payments","21/09/2018"
"Wolverhampton City Council","http://opendatacommunities.org/id/metropolitan-district-council/wolverhampton","000002200500000","250.00","Childrens with Disabilities Team","6011","No Recourse to Public Funds","21/09/2018"
"Wolverhampton City Council","http://opendatacommunities.org/id/metropolitan-district-council/wolverhampton","CAFFE NERO WOLVERHAMPT","2.37","Economic Development","5814","Catering","20/09/2018"
"Wolverhampton City Council","http://opendatacommunities.org/id/metropolitan-district-council/wolverhampton","AMZN Mktp UK","49.96","Headstart - Young People Engagement","5942","Stationery","20/09/2018"
"Wolverhampton City Council","http://opendatacommunities.org/id/metropolitan-district-council/wolverhampton","LOOP11.COM","156.40","City Direct","7372","Computing - Purchase of Software","20/09/2018"
"Wolverhampton City Council","http://opendatacommunities.org/id/metropolitan-district-council/wolverhampton","MARSTONS PLC","286.62","Mayoral Expenses","5921","Hospitality","20/09/2018"
"Wolverhampton City Council","http://opendatacommunities.org/id/metropolitan-district-council/wolverhampton","POUNDLAND LTD 1463","5.00","City Direct","5310","Equipment - Purchase","20/09/2018"
"Wolverhampton City Council","http://opendatacommunities.org/id/metropolitan-district-council/wolverhampton","POUNDLAND LTD 1463","5.00","Public Health Support Costs","5310","Equipment - Purchase","20/09/2018"
"Wolverhampton City Council","http://opendatacommunities.org/id/metropolitan-district-council/wolverhampton","AMZN Mktp UK","42.03","Strategic ICTS (ICT Serv Budget)","5942","Computing - Purchase of Hardware","20/09/2018"
"Wolverhampton City Council","http://opendatacommunities.org/id/metropolitan-district-council/wolverhampton","Amazon Prime","6.66","Strategic ICTS (ICT Serv Budget)","5968","Subscriptions","20/09/2018"
"Wolverhampton City Council","http://opendatacommunities.org/id/metropolitan-district-council/wolverhampton","WWW.WONDERLANDTEFORD.C","103.70","Upper Pendeford Farm Childrens Home","7996","Educ Trips, Holidays, Outings, Activity","20/09/2018"
"Wolverhampton City Council","http://opendatacommunities.org/id/metropolitan-district-council/wolverhampton","AMZN Mktp UK","2.74","Upper Pendeford Farm Childrens Home","5942","Stationery","20/09/2018"
"Wolverhampton City Council","http://opendatacommunities.org/id/metropolitan-district-council/wolverhampton","CONSERVATION BY DE","102.30","Archives","5111","Equipment - Purchase","20/09/2018"
"Wolverhampton City Council","http://opendatacommunities.org/id/metropolitan-district-council/wolverhampton","POUNDLAND LTD 1463","7.50","Education And Access","5310","Equipment - Purchase","20/09/2018"
"Wolverhampton City Council","http://opendatacommunities.org/id/metropolitan-district-council/wolverhampton","Trainline","127.91","CIN/CP Social Work Unit - Area 2","4112","Public Transport","20/09/2018"
"Wolverhampton City Council","http://opendatacommunities.org/id/metropolitan-district-council/wolverhampton","Amazon.co.uk","19.57","EIP Locality 3","5969","Grant Payments to Individuals","20/09/2018"
"Wolverhampton City Council","http://opendatacommunities.org/id/metropolitan-district-council/wolverhampton","WICKES","8.32","Duke Street Bungalows","5211","Equipment - R & M","20/09/2018"
"Wolverhampton City Council","http://opendatacommunities.org/id/metropolitan-district-council/wolverhampton","SAINSBURYS (2340)","9.10","Civic Centre Catering","5411","Provisions (Not for resale)","20/09/2018"
"Wolverhampton City Council","http://opendatacommunities.org/id/metropolitan-district-council/wolverhampton","JURYS INN GATESHEAD","125.33","Legal Services","7011","Accommodation Costs","20/09/2018"
"Wolverhampton City Council","http://opendatacommunities.org/id/metropolitan-district-council/wolverhampton","Trainline","98.35","Legal Services","4112","Public Transport","20/09/2018"
"Wolverhampton City Council","http://opendatacommunities.org/id/metropolitan-district-council/wolverhampton","Trainline","33.75","CIN/CP Social Work Unit - Area 4","4112","Section 17","20/09/2018"
"Wolverhampton City Council","http://opendatacommunities.org/id/metropolitan-district-council/wolverhampton","A2B RADIO CARS","25.20","Music Support Team","4121","Public Transport","20/09/2018"
"Wolverhampton City Council","http://opendatacommunities.org/id/metropolitan-district-council/wolverhampton","A2B RADIO CARS","24.60","Music Support Team","4121","Public Transport","20/09/2018"
"Wolverhampton City Council","http://opendatacommunities.org/id/metropolitan-district-council/wolverhampton","PREMIER INN","54.58","Adoption and Residence Team & Allowances","3811","Accommodation Costs","20/09/2018"
"Wolverhampton City Council","http://opendatacommunities.org/id/metropolitan-district-council/wolverhampton","GRO HM PASSPORT OFFICE","7.71","LAC Transitions Team","9399","Client Allowances","20/09/2018"
"Wolverhampton City Council","http://opendatacommunities.org/id/metropolitan-district-council/wolverhampton","AMZN Mktp UK","35.77","Members Expenses","5942","Equipment - Purchase","20/09/2018"
"Wolverhampton City Council","http://opendatacommunities.org/id/metropolitan-district-council/wolverhampton","ASDA GROCERIES ONLINE","46.16","Ernest Bold Court","5411","Provisions (Not for resale)","20/09/2018"
"Wolverhampton City Council","http://opendatacommunities.org/id/metropolitan-district-council/wolverhampton","WOLVERHAMPTON CC","8.33","Headstart Phase 3","7523","Parking Fees","20/09/2018"
"Wolverhampton City Council","http://opendatacommunities.org/id/metropolitan-district-council/wolverhampton","Amazon.co.uk","15.90","Safeguarding Admin Resource","5969","Equipment - Purchase","20/09/2018"
"Wolverhampton City Council","http://opendatacommunities.org/id/metropolitan-district-council/wolverhampton","WWW.CARESHOP.CO.UK","76.95","Ernest Bold Court","5999","Equipment - Purchase","19/09/2018"
"Wolverhampton City Council","http://opendatacommunities.org/id/metropolitan-district-council/wolverhampton","WWW.ARGOS.CO.UK","86.61","EIP Locality 3","5310","Grant Payments","19/09/2018"
"Wolverhampton City Council","http://opendatacommunities.org/id/metropolitan-district-council/wolverhampton","POST OFFICE COUNTER","632.00","Adoption and Residence Team & Allowances","9402","Comms - Postage","19/09/2018"
"Wolverhampton City Council","http://opendatacommunities.org/id/metropolitan-district-council/wolverhampton","WOLVERHAMPTON CC","3.33","Headstart - Young People Engagement","7523","Parking Fees","19/09/2018"
"Wolverhampton City Council","http://opendatacommunities.org/id/metropolitan-district-council/wolverhampton","ASDA SUPERSTORE","20.22","Mayoral Expenses","5411","Provisions (Not for resale)","19/09/2018"
"Wolverhampton City Council","http://opendatacommunities.org/id/metropolitan-district-council/wolverhampton","SAINSBURYS PFS (1340)","2.50","Mayoral Expenses","5541","Vehicle Maintenance - Repairs","19/09/2018"
"Wolverhampton City Council","http://opendatacommunities.org/id/metropolitan-district-council/wolverhampton","POUNDLAND LTD 1463","2.50","Admin & Support","5310","Equipment - Purchase","19/09/2018"
"Wolverhampton City Council","http://opendatacommunities.org/id/metropolitan-district-council/wolverhampton","NAMESCO","27.96","Food & Consumer Safety","4816","Computing - Purchase of Software","19/09/2018"
"Wolverhampton City Council","http://opendatacommunities.org/id/metropolitan-district-council/wolverhampton","Central Taxis Limited","8.80","LAC Education Team (LACE)","4121","Client Transport","19/09/2018"
"Wolverhampton City Council","http://opendatacommunities.org/id/metropolitan-district-council/wolverhampton","Central Taxis Limited","8.70","LAC Education Team (LACE)","4121","Client Transport","19/09/2018"
"Wolverhampton City Council","http://opendatacommunities.org/id/metropolitan-district-council/wolverhampton","Trainline","165.40","LAC Education Team (LACE)","4112","Public Transport","19/09/2018"
"Wolverhampton City Council","http://opendatacommunities.org/id/metropolitan-district-council/wolverhampton","THE POST OFFICE","11.00","LAC Transitions Team","9402","Client Allowances","19/09/2018"
"Wolverhampton City Council","http://opendatacommunities.org/id/metropolitan-district-council/wolverhampton","CT WOLVERHAMPTON","85.00","LAC Transitions Team","8398","Client Allowances","19/09/2018"
"Wolverhampton City Council","http://opendatacommunities.org/id/metropolitan-district-council/wolverhampton","Trainline","84.02","Youth Offending Team","4112","Public Transport","19/09/2018"
"Wolverhampton City Council","http://opendatacommunities.org/id/metropolitan-district-council/wolverhampton","SCREWFIX WOLVERHAM","95.87","Cemeteries","5211","Materials","19/09/2018"
"Wolverhampton City Council","http://opendatacommunities.org/id/metropolitan-district-council/wolverhampton","ASDA SUPERSTORE","35.41","EIP Locality 6","5411","Provisions (Not for resale)","19/09/2018"
"Wolverhampton City Council","http://opendatacommunities.org/id/metropolitan-district-council/wolverhampton","Amazon.co.uk","24.38","Corporate Procurement Unit","5969","Equipment - Purchase","19/09/2018"
"Wolverhampton City Council","http://opendatacommunities.org/id/metropolitan-district-council/wolverhampton","Virgin Trains","18.50","Strategic Financial Services","4112","Public Transport","19/09/2018"
"Wolverhampton City Council","http://opendatacommunities.org/id/metropolitan-district-council/wolverhampton","AMZN Mktp UK","19.10","Upper Pendeford Farm Childrens Home","5942","Stationery","19/09/2018"
"Wolverhampton City Council","http://opendatacommunities.org/id/metropolitan-district-council/wolverhampton","WM MORRISONS","9.35","Foundation Studies","5411","Provisions (Not for resale)","19/09/2018"
"Wolverhampton City Council","http://opendatacommunities.org/id/metropolitan-district-council/wolverhampton","HOME BARGAINS WOLVERHA","4.84","Foundation Studies","5251","Equipment - Purchase","19/09/2018"
"Wolverhampton City Council","http://opendatacommunities.org/id/metropolitan-district-council/wolverhampton","PO WILLENHALL RD 5497","10.00","EIP Locality 1","6011","Financial Assistance In Exceptional Circ","19/09/2018"
"Wolverhampton City Council","http://opendatacommunities.org/id/metropolitan-district-council/wolverhampton","Trainline","19.45","SEN Special Education Admin","4112","Public Transport","19/09/2018"
"Wolverhampton City Council","http://opendatacommunities.org/id/metropolitan-district-council/wolverhampton","Cross Country Trains","7.80","Head of Strategic Commissioning � People","4112","Public Transport","19/09/2018"
"Wolverhampton City Council","http://opendatacommunities.org/id/metropolitan-district-council/wolverhampton","Cross Country Trains","9.10","Head of Strategic Commissioning � People","4112","Public Transport","19/09/2018"
"Wolverhampton City Council","http://opendatacommunities.org/id/metropolitan-district-council/wolverhampton","NUCO TECHNOLOGIES","12.98","Technical Support","7372","Computing - Purchase of Software","19/09/2018"
"Wolverhampton City Council","http://opendatacommunities.org/id/metropolitan-district-council/wolverhampton","Amazon.co.uk","11.99","Global Budgets","5969","Books","19/09/2018"
"Wolverhampton City Council","http://opendatacommunities.org/id/metropolitan-district-council/wolverhampton","PAYPAL  NATIONALASS","145.00","Art Gallery","8398","Conference Expenses","19/09/2018"
"Wolverhampton City Council","http://opendatacommunities.org/id/metropolitan-district-council/wolverhampton","Virgin Trains","103.50","LAC Team","4112","Public Transport","19/09/2018"
"Wolverhampton City Council","http://opendatacommunities.org/id/metropolitan-district-council/wolverhampton","Virgin Trains","132.80","Adoption and Residence Team & Allowances","4112","Public Transport","19/09/2018"
"Wolverhampton City Council","http://opendatacommunities.org/id/metropolitan-district-council/wolverhampton","CARESHOP","97.69","Specialist Support Service - North","5999","Equipment - Purchase","19/09/2018"
"Wolverhampton City Council","http://opendatacommunities.org/id/metropolitan-district-council/wolverhampton","AMZN Mktp UK","79.17","Specialist Support Service - North","5942","Books","19/09/2018"
"Wolverhampton City Council","http://opendatacommunities.org/id/metropolitan-district-council/wolverhampton","SCREWFIX DIRECT","47.99","Car Parks Operational Staff","5211","Equipment - Purchase","19/09/2018"
"Wolverhampton City Council","http://opendatacommunities.org/id/metropolitan-district-council/wolverhampton","TRADING STANDARDS INST","520.00","Central Training","5965","Training Expenses","19/09/2018"
"Wolverhampton City Council","http://opendatacommunities.org/id/metropolitan-district-council/wolverhampton","CIPFA FINANCE","195.00","Central Training","5999","Training Expenses","19/09/2018"
"Wolverhampton City Council","http://opendatacommunities.org/id/metropolitan-district-council/wolverhampton","Trainline","373.89","Legal Services","4112","Public Transport","19/09/2018"
"Wolverhampton City Council","http://opendatacommunities.org/id/metropolitan-district-council/wolverhampton","Trainline","-5.80","CIN/CP Social Work Unit - Area 8","4112","Section 17","19/09/2018"
"Wolverhampton City Council","http://opendatacommunities.org/id/metropolitan-district-council/wolverhampton","Virgin Trains","119.80","Adoption and Residence Team & Allowances","4112","Public Transport","19/09/2018"
"Wolverhampton City Council","http://opendatacommunities.org/id/metropolitan-district-council/wolverhampton","UNTOUCHABLES","5.00","Education Catering - General Overheads","5231","Materials","18/09/2018"
"Wolverhampton City Council","http://opendatacommunities.org/id/metropolitan-district-council/wolverhampton","AMZN MKTP UK AMAZON.CO","10.81","EIP Locality 7","5942","Stationery","18/09/2018"
"Wolverhampton City Council","http://opendatacommunities.org/id/metropolitan-district-council/wolverhampton","Virgin Trains","-98.00","Planning","4112","Public Transport","18/09/2018"
"Wolverhampton City Council","http://opendatacommunities.org/id/metropolitan-district-council/wolverhampton","CUMMINGS BROTHERS LOCK","4.17","Adult Services - East","7399","Equipment - Purchase","18/09/2018"
"Wolverhampton City Council","http://opendatacommunities.org/id/metropolitan-district-council/wolverhampton","PAYPAL  EVENTSINDUS","25.00","Outdoor Events Admin","8999","Services - Professional Fees","18/09/2018"
"Wolverhampton City Council","http://opendatacommunities.org/id/metropolitan-district-council/wolverhampton","Trainline","75.69","Service Director Adults","4112","Public Transport","18/09/2018"
"Wolverhampton City Council","http://opendatacommunities.org/id/metropolitan-district-council/wolverhampton","Virgin Trains","376.00","Quality Assurance & Policies","4112","Public Transport","18/09/2018"
"Wolverhampton City Council","http://opendatacommunities.org/id/metropolitan-district-council/wolverhampton","OUTDOOR EDUCATION ADVI","120.00","Towers Outdoor Education Centre","5734","Equipment - Purchase","18/09/2018"
"Wolverhampton City Council","http://opendatacommunities.org/id/metropolitan-district-council/wolverhampton","Trainline","117.14","Electoral Registration","4112","Public Transport","18/09/2018"
"Wolverhampton City Council","http://opendatacommunities.org/id/metropolitan-district-council/wolverhampton","WOLVERHAMPTON CC","2.50","Headstart - Young People Engagement","7523","Parking Fees","18/09/2018"
"Wolverhampton City Council","http://opendatacommunities.org/id/metropolitan-district-council/wolverhampton","ADDSEARCH","54.82","City Direct","7372","Computing - Purchase of Software","18/09/2018"
"Wolverhampton City Council","http://opendatacommunities.org/id/metropolitan-district-council/wolverhampton","CT WOLVERHAMPTON","180.00","LAC Transitions Team","8398","Client Allowances","18/09/2018"
"Wolverhampton City Council","http://opendatacommunities.org/id/metropolitan-district-council/wolverhampton","Amazon.co.uk","25.00","Document Centre - General","5969","Equipment - Purchase","18/09/2018"
"Wolverhampton City Council","http://opendatacommunities.org/id/metropolitan-district-council/wolverhampton","Virgin Trains","53.50","Corporate Procurement Unit","4112","Public Transport","18/09/2018"
"Wolverhampton City Council","http://opendatacommunities.org/id/metropolitan-district-council/wolverhampton","ASDA GROCERIES ONLINE","47.36","Ernest Bold Court","5411","Provisions (Not for resale)","18/09/2018"
"Wolverhampton City Council","http://opendatacommunities.org/id/metropolitan-district-council/wolverhampton","J D SPORTS PLC","41.67","IMPACT","5941","Clothing / Uniforms","18/09/2018"
"Wolverhampton City Council","http://opendatacommunities.org/id/metropolitan-district-council/wolverhampton","FOOTASYLUM LTD","93.74","IMPACT","5941","Clothing / Uniforms","18/09/2018"
"Wolverhampton City Council","http://opendatacommunities.org/id/metropolitan-district-council/wolverhampton","Foot Locker 4203","20.87","IMPACT","5999","Clothing / Uniforms","18/09/2018"
"Wolverhampton City Council","http://opendatacommunities.org/id/metropolitan-district-council/wolverhampton","Trainline","18.75","CIN/CP Social Work Unit - Area 8","4112","Public Transport","18/09/2018"
"Wolverhampton City Council","http://opendatacommunities.org/id/metropolitan-district-council/wolverhampton","BRITANNIA","79.00","MASH","7011","Section 17","18/09/2018"
"Wolverhampton City Council","http://opendatacommunities.org/id/metropolitan-district-council/wolverhampton","ASDA SUPERSTORE","12.50","MASH","5411","Catering","18/09/2018"
"Wolverhampton City Council","http://opendatacommunities.org/id/metropolitan-district-council/wolverhampton","123-REG.CO.UK","29.97","Technical Support","4816","Computing - Purchase of Software","18/09/2018"
"Wolverhampton City Council","http://opendatacommunities.org/id/metropolitan-district-council/wolverhampton","Amazon.co.uk","14.92","Strategic Director Place","5969","Equipment - Purchase","18/09/2018"
"Wolverhampton City Council","http://opendatacommunities.org/id/metropolitan-district-council/wolverhampton","LOVE2SHOP.CO.UK","249.25","IMPACT","8641","Educ Trips, Holidays, Outings, Activity","17/09/2018"
"Wolverhampton City Council","http://opendatacommunities.org/id/metropolitan-district-council/wolverhampton","MUSIC WEEK","249.00","Visitor Economy - Development","2741","Publications","17/09/2018"
"Wolverhampton City Council","http://opendatacommunities.org/id/metropolitan-district-council/wolverhampton","ASDA GROCERIES ONLINE","53.78","Ernest Bold Court","5411","Provisions (Not for resale)","17/09/2018"
"Wolverhampton City Council","http://opendatacommunities.org/id/metropolitan-district-council/wolverhampton","POUNDLAND LTD 1463","2.50","Technician","5310","Equipment - Purchase","17/09/2018"
"Wolverhampton City Council","http://opendatacommunities.org/id/metropolitan-district-council/wolverhampton","WM MORRISON 024","8.33","LAC Transitions Team","5411","Independant Living Allowance","17/09/2018"
"Wolverhampton City Council","http://opendatacommunities.org/id/metropolitan-district-council/wolverhampton","POUNDLAND","5.00","LAC Transitions Team","5310","Client Allowances","17/09/2018"
"Wolverhampton City Council","http://opendatacommunities.org/id/metropolitan-district-council/wolverhampton","MATALAN","18.33","LAC Transitions Team","5691","Client Allowances","17/09/2018"
"Wolverhampton City Council","http://opendatacommunities.org/id/metropolitan-district-council/wolverhampton","POST OFFICE COUNTER","24.12","EIP Locality 3","9402","Comms - Postage","17/09/2018"
"Wolverhampton City Council","http://opendatacommunities.org/id/metropolitan-district-council/wolverhampton","000002200500000","250.00","CIN/CP Social Work Unit - Area 6","6011","No Recourse to Public Funds","17/09/2018"
"Wolverhampton City Council","http://opendatacommunities.org/id/metropolitan-district-council/wolverhampton","Virgin Trains","63.20","Adoption and Residence Team & Allowances","4112","Public Transport","17/09/2018"
"Wolverhampton City Council","http://opendatacommunities.org/id/metropolitan-district-council/wolverhampton","MONARCH CLEANERS LTD","168.60","Towers Outdoor Education Centre","7216","Laundry Expenses","17/09/2018"
"Wolverhampton City Council","http://opendatacommunities.org/id/metropolitan-district-council/wolverhampton","BURTECH CYF","234.08","Towers Outdoor Education Centre","7538","Equipment - Purchase","17/09/2018"
"Wolverhampton City Council","http://opendatacommunities.org/id/metropolitan-district-council/wolverhampton","RICHARD WILLIAMS","10.20","Towers Outdoor Education Centre","5211","Fixtures and Fittings - Purchases","17/09/2018"
"Wolverhampton City Council","http://opendatacommunities.org/id/metropolitan-district-council/wolverhampton","C L JONES HEAD OFFICE","150.83","Towers Outdoor Education Centre","5211","Fixtures and Fittings - Purchases","17/09/2018"
"Wolverhampton City Council","http://opendatacommunities.org/id/metropolitan-district-council/wolverhampton","BELLISSIMA LX","29.42","GEN Y City Transnational","5812","Educ Trips, Holidays, Outings, Activity","17/09/2018"
"Wolverhampton City Council","http://opendatacommunities.org/id/metropolitan-district-council/wolverhampton","HOVER","78.74","Headstart Phase 3","7372","Computing - Purchase of Software","17/09/2018"
"Wolverhampton City Council","http://opendatacommunities.org/id/metropolitan-district-council/wolverhampton","POST OFFICE COUNTER","4.45","Bert Williams Leisure Centre","9402","Comms - Postage","17/09/2018"
"Wolverhampton City Council","http://opendatacommunities.org/id/metropolitan-district-council/wolverhampton","WISEPOPS","65.20","City Direct","7372","Computing - Purchase of Software","17/09/2018"
"Wolverhampton City Council","http://opendatacommunities.org/id/metropolitan-district-council/wolverhampton","POUNDLAND LTD","3.34","Admin & Support","5310","Equipment - Purchase","17/09/2018"
"Wolverhampton City Council","http://opendatacommunities.org/id/metropolitan-district-council/wolverhampton","NAMESCO","27.96","Food & Consumer Safety","4816","Computing - Purchase of Software","17/09/2018"
"Wolverhampton City Council","http://opendatacommunities.org/id/metropolitan-district-council/wolverhampton","ITUNES.COM/BILL","2.07","LAC Education Team (LACE)","5735","Computing - Purchase of Software","17/09/2018"
"Wolverhampton City Council","http://opendatacommunities.org/id/metropolitan-district-council/wolverhampton","AMZN Mktp UK","18.64","EIP Locality 6","5942","Provisions (Not for resale)","17/09/2018"
"Wolverhampton City Council","http://opendatacommunities.org/id/metropolitan-district-council/wolverhampton","CO OP FOOD","15.00","LAC Transitions Team","5411","Client Allowances","17/09/2018"
"Wolverhampton City Council","http://opendatacommunities.org/id/metropolitan-district-council/wolverhampton","WWW.BROWNFIELDBREIFING","396.00","Former Courtaulds Site","2741","Publications","17/09/2018"
"Wolverhampton City Council","http://opendatacommunities.org/id/metropolitan-district-council/wolverhampton","APPLE ONLINE STORE GBP","582.50","Strategic ICTS (ICT Serv Budget)","5732","Equipment - Purchase","17/09/2018"
"Wolverhampton City Council","http://opendatacommunities.org/id/metropolitan-district-council/wolverhampton","AMZN Mktp UK","11.84","Strategic ICTS (ICT Serv Budget)","5942","Books","17/09/2018"
"Wolverhampton City Council","http://opendatacommunities.org/id/metropolitan-district-council/wolverhampton","ASDA GROCERIES ONLINE","-1.16","Upper Pendeford Farm Childrens Home","5411","Provisions (Not for resale)","17/09/2018"
"Wolverhampton City Council","http://opendatacommunities.org/id/metropolitan-district-council/wolverhampton","ASDA GROCERIES ONLINE","192.19","Upper Pendeford Farm Childrens Home","5411","Provisions (Not for resale)","17/09/2018"
"Wolverhampton City Council","http://opendatacommunities.org/id/metropolitan-district-council/wolverhampton","ASDA GROCERIES ONLINE","3.00","Upper Pendeford Farm Childrens Home","5411","Provisions (Not for resale)","17/09/2018"
"Wolverhampton City Council","http://opendatacommunities.org/id/metropolitan-district-council/wolverhampton","Central Taxis Limited","-10.70","LAC Team","4121","Client Transport","17/09/2018"
"Wolverhampton City Council","http://opendatacommunities.org/id/metropolitan-district-council/wolverhampton","SQ  PLATINUM CHAUFFEUR","400.00","LAC Team","4121","Client Transport","17/09/2018"
"Wolverhampton City Council","http://opendatacommunities.org/id/metropolitan-district-council/wolverhampton","AMZN Mktp UK","37.03","Language Studies Delivery Area","5942","Computing - Purchase of Software","17/09/2018"
"Wolverhampton City Council","http://opendatacommunities.org/id/metropolitan-district-council/wolverhampton","SCREWFIX DIRECT LT","40.43","Old Hall Street Main","5211","Materials","17/09/2018"
"Wolverhampton City Council","http://opendatacommunities.org/id/metropolitan-district-council/wolverhampton","WILKO RETAIL LIMIT","10.35","Central Costs","5722","Cleaning Supplies and Materials","17/09/2018"
"Wolverhampton City Council","http://opendatacommunities.org/id/metropolitan-district-council/wolverhampton","ARRIVA TRAINS WALE","19.20","Art Gallery","4112","Public Transport","17/09/2018"
"Wolverhampton City Council","http://opendatacommunities.org/id/metropolitan-district-council/wolverhampton","Amazon.co.uk","35.58","EIP Locality 1","5969","Equipment - Purchase","17/09/2018"
"Wolverhampton City Council","http://opendatacommunities.org/id/metropolitan-district-council/wolverhampton","Santander","100.00","EIP Locality 1","6011","Grant Payments","17/09/2018"
"Wolverhampton City Council","http://opendatacommunities.org/id/metropolitan-district-council/wolverhampton","WWW.GOV.UK","40.00","Revenues","8999","Services - Professional Fees","17/09/2018"
"Wolverhampton City Council","http://opendatacommunities.org/id/metropolitan-district-council/wolverhampton","ALDI 48 772","30.36","Employment Programmes","5411","Provisions (Not for resale)","17/09/2018"
"Wolverhampton City Council","http://opendatacommunities.org/id/metropolitan-district-council/wolverhampton","Wix.com","93.13","Technical Support","5817","Computing - Purchase of Software","17/09/2018"
"Wolverhampton City Council","http://opendatacommunities.org/id/metropolitan-district-council/wolverhampton","AMZN Mktp UK","69.92","Technical Support","5942","Computing - Purchase of Hardware","17/09/2018"
"Wolverhampton City Council","http://opendatacommunities.org/id/metropolitan-district-council/wolverhampton","AMZN Mktp UK","19.56","Global Budgets","5942","Books","17/09/2018"
"Wolverhampton City Council","http://opendatacommunities.org/id/metropolitan-district-council/wolverhampton","FS160 CLAREGATE","5.49","Specialist Support Service - North","5541","Equipment - R & M","17/09/2018"
"Wolverhampton City Council","http://opendatacommunities.org/id/metropolitan-district-council/wolverhampton","NEW VICTORIA THEATRE P","2.00","Art Gallery","7922","Educ Trips, Holidays, Outings, Activity","17/09/2018"
"Wolverhampton City Council","http://opendatacommunities.org/id/metropolitan-district-council/wolverhampton","WOLVERHAMPTON T/O","17.80","Art Gallery","4112","Public Transport","17/09/2018"
"Wolverhampton City Council","http://opendatacommunities.org/id/metropolitan-district-council/wolverhampton","E.ON ENERGY SOLUTIONS","353.66","LAC Team","4900","Financial Assistance In Exceptional Circ","17/09/2018"
"Wolverhampton City Council","http://opendatacommunities.org/id/metropolitan-district-council/wolverhampton","Amazon.co.uk","17.88","Inclusion Support","5969","Books","17/09/2018"
"Wolverhampton City Council","http://opendatacommunities.org/id/metropolitan-district-council/wolverhampton","MAJESTIC WINE","-654.72","Civic Centre Catering","5921","Equipment - Purchase","17/09/2018"
"Wolverhampton City Council","http://opendatacommunities.org/id/metropolitan-district-council/wolverhampton","AMZN Mktp UK","27.50","Parks - Ranger Service","5942","Equipment - Purchase","17/09/2018"
"Wolverhampton City Council","http://opendatacommunities.org/id/metropolitan-district-council/wolverhampton","ASDA GROCERIES ONLINE","-4.20","Duke Street Bungalows","5411","Provisions (Not for resale)","17/09/2018"
"Wolverhampton City Council","http://opendatacommunities.org/id/metropolitan-district-council/wolverhampton","ASDA GROCERIES ONLINE","-2.80","Duke Street Bungalows","5411","Provisions (Not for resale)","17/09/2018"
"Wolverhampton City Council","http://opendatacommunities.org/id/metropolitan-district-council/wolverhampton","ASDA GROCERIES ONLINE","246.50","Duke Street Bungalows","5411","Provisions (Not for resale)","17/09/2018"
"Wolverhampton City Council","http://opendatacommunities.org/id/metropolitan-district-council/wolverhampton","Oyster Online","50.00","Members Expenses","4112","Public Transport","17/09/2018"
"Wolverhampton City Council","http://opendatacommunities.org/id/metropolitan-district-council/wolverhampton","WOLVERHAMPTON T/O","7.80","Adult Services - East","4112","Public Transport","14/09/2018"
"Wolverhampton City Council","http://opendatacommunities.org/id/metropolitan-district-council/wolverhampton","LOYD 37 CHURCH STREET","100.00","EIP Locality 8","6011","Grant Payments","14/09/2018"
"Wolverhampton City Council","http://opendatacommunities.org/id/metropolitan-district-council/wolverhampton","Trainline","36.95","Safeguarding Admin Resource","4112","Public Transport","14/09/2018"
"Wolverhampton City Council","http://opendatacommunities.org/id/metropolitan-district-council/wolverhampton","000002200500000","100.00","Childrens with Disabilities Team","6011","Section 17","14/09/2018"
"Wolverhampton City Council","http://opendatacommunities.org/id/metropolitan-district-council/wolverhampton","000002200500000","250.00","Childrens with Disabilities Team","6011","Financial Assistance In Exceptional Circ","14/09/2018"
"Wolverhampton City Council","http://opendatacommunities.org/id/metropolitan-district-council/wolverhampton","TESCO STORES 5194","242.84","Towers Outdoor Education Centre","5411","Provisions (Not for resale)","14/09/2018"
"Wolverhampton City Council","http://opendatacommunities.org/id/metropolitan-district-council/wolverhampton","AMZN Mktp UK","89.80","Towers Outdoor Education Centre","5942","Equipment - Purchase","14/09/2018"
"Wolverhampton City Council","http://opendatacommunities.org/id/metropolitan-district-council/wolverhampton","GENTING HOTEL","169.00","Managing Director","7011","Services - Supplies & Services to users","14/09/2018"
"Wolverhampton City Council","http://opendatacommunities.org/id/metropolitan-district-council/wolverhampton","FACEBK HJGPKHNAR2","500.00","Communications & Marketing - General","7311","Marketing \ Non-staff advertising","14/09/2018"
"Wolverhampton City Council","http://opendatacommunities.org/id/metropolitan-district-council/wolverhampton","TESCO STORE 2831","137.75","LAC Transitions Team","5411","Client Allowances","14/09/2018"
"Wolverhampton City Council","http://opendatacommunities.org/id/metropolitan-district-council/wolverhampton","AMZN Mktp UK","24.60","EIP Locality 6","5942","Grant Payments","14/09/2018"
"Wolverhampton City Council","http://opendatacommunities.org/id/metropolitan-district-council/wolverhampton","AMZN Mktp UK","24.95","EIP Locality 6","5942","Provisions (Not for resale)","14/09/2018"
"Wolverhampton City Council","http://opendatacommunities.org/id/metropolitan-district-council/wolverhampton","DENNISWILLECOM","69.45","LAC Transitions Team","5999","Client Allowances","14/09/2018"
"Wolverhampton City Council","http://opendatacommunities.org/id/metropolitan-district-council/wolverhampton","WWW.ALDERCROSS.COM","450.00","Service Director City Environment","7392","Services - Consultants","14/09/2018"
"Wolverhampton City Council","http://opendatacommunities.org/id/metropolitan-district-council/wolverhampton","Amazon.co.uk","41.62","Strategic ICTS (ICT Serv Budget)","5969","Equipment - Purchase","14/09/2018"
"Wolverhampton City Council","http://opendatacommunities.org/id/metropolitan-district-council/wolverhampton","AMZN Mktp UK","6.66","Strategic ICTS (ICT Serv Budget)","5942","Books","14/09/2018"
"Wolverhampton City Council","http://opendatacommunities.org/id/metropolitan-district-council/wolverhampton","Trainline","77.72","LAC Transitions Team","4112","Public Transport","14/09/2018"
"Wolverhampton City Council","http://opendatacommunities.org/id/metropolitan-district-council/wolverhampton","AMZN Mktp UK","16.47","Central Baths","5942","Books","14/09/2018"
"Wolverhampton City Council","http://opendatacommunities.org/id/metropolitan-district-council/wolverhampton","ASDA GROCERIES ONLINE","29.10","Upper Pendeford Farm Childrens Home","5411","Provisions (Not for resale)","14/09/2018"
"Wolverhampton City Council","http://opendatacommunities.org/id/metropolitan-district-council/wolverhampton","Virgin Trains","35.70","LAC Team","4112","Public Transport","14/09/2018"
"Wolverhampton City Council","http://opendatacommunities.org/id/metropolitan-district-council/wolverhampton","ARGOS RETAIL GROUP","-7.99","Emergency Duty Team","5310","Equipment - Purchase","14/09/2018"
"Wolverhampton City Council","http://opendatacommunities.org/id/metropolitan-district-council/wolverhampton","ARGOS WOLVERHAMPTO","5.00","Emergency Duty Team","5310","Equipment - Purchase","14/09/2018"
"Wolverhampton City Council","http://opendatacommunities.org/id/metropolitan-district-council/wolverhampton","SECURITY INDUSTRY","220.00","Transportation General","7393","Fixtures and Fittings - R&M","14/09/2018"
"Wolverhampton City Council","http://opendatacommunities.org/id/metropolitan-district-council/wolverhampton","WILKO.COM","50.60","MASH","5399","Stationery","14/09/2018"
"Wolverhampton City Council","http://opendatacommunities.org/id/metropolitan-district-council/wolverhampton","Amazon.co.uk","24.27","Employment Programmes","5969","Equipment - Purchase","14/09/2018"
"Wolverhampton City Council","http://opendatacommunities.org/id/metropolitan-district-council/wolverhampton","FOOD EVENTS AND THINGS","55.00","Education Catering - General Overheads","7997","Subscriptions","14/09/2018"
"Wolverhampton City Council","http://opendatacommunities.org/id/metropolitan-district-council/wolverhampton","123-REG.CO.UK","79.92","Technical Support","4816","Computing - Purchase of Software","14/09/2018"
"Wolverhampton City Council","http://opendatacommunities.org/id/metropolitan-district-council/wolverhampton","WP-CENTRAL TAXIS L","460.00","LAC Team","4121","Client Transport","14/09/2018"
"Wolverhampton City Council","http://opendatacommunities.org/id/metropolitan-district-council/wolverhampton","TOOLSTATION LTD","10.08","Education Catering - General Overheads","5251","Equipment - Purchase","14/09/2018"
"Wolverhampton City Council","http://opendatacommunities.org/id/metropolitan-district-council/wolverhampton","WWW.WMCA.CO.UK","90.85","CIN/CP Social Work Unit - Area 4","9399","Section 17","14/09/2018"
"Wolverhampton City Council","http://opendatacommunities.org/id/metropolitan-district-council/wolverhampton","Trainline","51.51","CIN/CP Social Work Unit - Area 4","4112","Section 17","14/09/2018"
"Wolverhampton City Council","http://opendatacommunities.org/id/metropolitan-district-council/wolverhampton","AMZN MKTP UK AMAZON.CO","8.32","EIP Locality 7","5942","Stationery","14/09/2018"
"Wolverhampton City Council","http://opendatacommunities.org/id/metropolitan-district-council/wolverhampton","AMZN MKTP UK AMAZON.CO","39.90","EIP Locality 7","5942","Stationery","14/09/2018"
"Wolverhampton City Council","http://opendatacommunities.org/id/metropolitan-district-council/wolverhampton","Amazon.co.uk","5.91","Planning","5969","Equipment - Purchase","14/09/2018"
"Wolverhampton City Council","http://opendatacommunities.org/id/metropolitan-district-council/wolverhampton","Amazon.co.uk","23.63","Planning","5969","Equipment - Purchase","14/09/2018"
"Wolverhampton City Council","http://opendatacommunities.org/id/metropolitan-district-council/wolverhampton","PARCELFORCE WORLDWIDE","113.98","Mayor's Charity","4214","Services - Fees and Charges","14/09/2018"
"Wolverhampton City Council","http://opendatacommunities.org/id/metropolitan-district-council/wolverhampton","Trainline","186.44","Citizenship, Language & Learning","4112","Public Transport","13/09/2018"
"Wolverhampton City Council","http://opendatacommunities.org/id/metropolitan-district-council/wolverhampton","WOLVERHAMPTON CC","2.50","Headstart Phase 3","7523","Parking Fees","13/09/2018"
"Wolverhampton City Council","http://opendatacommunities.org/id/metropolitan-district-council/wolverhampton","PREMIER INN","85.42","Research & Development","3811","Accommodation Costs","13/09/2018"
"Wolverhampton City Council","http://opendatacommunities.org/id/metropolitan-district-council/wolverhampton","AMERISUITES","104.17","Mayoral Expenses","3514","Accommodation Costs","13/09/2018"
"Wolverhampton City Council","http://opendatacommunities.org/id/metropolitan-district-council/wolverhampton","LOYD 89 CHURCH STREET","100.00","EIP Locality 2","6011","Grant Payments","13/09/2018"
"Wolverhampton City Council","http://opendatacommunities.org/id/metropolitan-district-council/wolverhampton","000002200500000","240.00","CIN/CP Social Work Unit - Area 6","6011","Section 17","13/09/2018"
"Wolverhampton City Council","http://opendatacommunities.org/id/metropolitan-district-council/wolverhampton","DUNELM ONLINE ORDER","165.00","Towers Outdoor Education Centre","5714","Fixtures and Fittings - Purchases","13/09/2018"
"Wolverhampton City Council","http://opendatacommunities.org/id/metropolitan-district-council/wolverhampton","FUEL CARD SERVICES LTD","650.37","Towers Outdoor Education Centre","7399","Petrol","13/09/2018"
"Wolverhampton City Council","http://opendatacommunities.org/id/metropolitan-district-council/wolverhampton","BLOXWICH  SST","7.20","Economic Development","4112","Public Transport","13/09/2018"
"Wolverhampton City Council","http://opendatacommunities.org/id/metropolitan-district-council/wolverhampton","RYANAIR","9.20","GEN Y City Transnational","3246","Public Transport","13/09/2018"
"Wolverhampton City Council","http://opendatacommunities.org/id/metropolitan-district-council/wolverhampton","SANA RENO HOTEL","305.43","GEN Y City Transnational","7011","Services - Supplies & Services to users","13/09/2018"
"Wolverhampton City Council","http://opendatacommunities.org/id/metropolitan-district-council/wolverhampton","SANA RENO HOTEL","274.15","GEN Y City Transnational","7011","Services - Supplies & Services to users","13/09/2018"
"Wolverhampton City Council","http://opendatacommunities.org/id/metropolitan-district-council/wolverhampton","SANA RENO HOTEL","183.99","GEN Y City Transnational","7011","Services - Supplies & Services to users","13/09/2018"
"Wolverhampton City Council","http://opendatacommunities.org/id/metropolitan-district-council/wolverhampton","SURVEYMONKEY.COM","280.00","Communications & Marketing - General","5968","Subscriptions","13/09/2018"
"Wolverhampton City Council","http://opendatacommunities.org/id/metropolitan-district-council/wolverhampton","AMZN Mktp UK","35.80","Admin & Support","5942","Catering","13/09/2018"
"Wolverhampton City Council","http://opendatacommunities.org/id/metropolitan-district-council/wolverhampton","AMZN Mktp UK","9.56","Admin & Support","5942","Equipment - Health and Safety","13/09/2018"
"Wolverhampton City Council","http://opendatacommunities.org/id/metropolitan-district-council/wolverhampton","WWW.ARGOS.CO.UK","53.94","LAC Transitions Team","5310","Client Allowances","13/09/2018"
"Wolverhampton City Council","http://opendatacommunities.org/id/metropolitan-district-council/wolverhampton","THE POST OFFICE","1.56","Cemeteries","9402","Comms - Postage","13/09/2018"
"Wolverhampton City Council","http://opendatacommunities.org/id/metropolitan-district-council/wolverhampton","Virgin Trains","176.00","Adoption and Residence Team & Allowances","4112","Public Transport","13/09/2018"
"Wolverhampton City Council","http://opendatacommunities.org/id/metropolitan-district-council/wolverhampton","Amazon.co.uk","59.84","Strategic ICTS (ICT Serv Budget)","5969","Equipment - Purchase","13/09/2018"
"Wolverhampton City Council","http://opendatacommunities.org/id/metropolitan-district-council/wolverhampton","Amazon.co.uk","24.41","Strategic ICTS (ICT Serv Budget)","5969","Equipment - Purchase","13/09/2018"
"Wolverhampton City Council","http://opendatacommunities.org/id/metropolitan-district-council/wolverhampton","Amazon Prime",".82","Strategic ICTS (ICT Serv Budget)","5968","Subscriptions","13/09/2018"
"Wolverhampton City Council","http://opendatacommunities.org/id/metropolitan-district-council/wolverhampton","ARGOS RETAIL GROUP","15.98","Emergency Duty Team","5310","Equipment - Purchase","13/09/2018"
"Wolverhampton City Council","http://opendatacommunities.org/id/metropolitan-district-council/wolverhampton","WCC MOTO PAYMENTS","10.00","Ernest Bold Court","9399","Services - Professional Fees","13/09/2018"
"Wolverhampton City Council","http://opendatacommunities.org/id/metropolitan-district-council/wolverhampton","AMZN Mktp UK","145.72","Headstart - Employability","5942","Stationery","13/09/2018"
"Wolverhampton City Council","http://opendatacommunities.org/id/metropolitan-district-council/wolverhampton","AMZN Mktp UK","107.37","Headstart - Employability","5942","Stationery","13/09/2018"
"Wolverhampton City Council","http://opendatacommunities.org/id/metropolitan-district-council/wolverhampton","JAMES LISTER & SONS LT","46.44","Culwell Street Depot","5085","Equipment - Purchase","13/09/2018"
"Wolverhampton City Council","http://opendatacommunities.org/id/metropolitan-district-council/wolverhampton","JAMES LISTER & SONS LT","5.08","Culwell Street Depot","5085","R&M - Departmental planned (external)","13/09/2018"
"Wolverhampton City Council","http://opendatacommunities.org/id/metropolitan-district-council/wolverhampton","CardtronicsUK","200.00","MASH","6011","Section 17","13/09/2018"
"Wolverhampton City Council","http://opendatacommunities.org/id/metropolitan-district-council/wolverhampton","ASDA GROCERIES ONLINE","113.07","Duke Street Bungalows","5411","Provisions (Not for resale)","13/09/2018"
"Wolverhampton City Council","http://opendatacommunities.org/id/metropolitan-district-council/wolverhampton","PAYPAL  123REGLIMIT","179.82","Technical Support","4816","Computing - Purchase of Software","13/09/2018"
"Wolverhampton City Council","http://opendatacommunities.org/id/metropolitan-district-council/wolverhampton","WATERSTONES","50.00","City Centre","5942","Services - Fees and Charges","13/09/2018"
"Wolverhampton City Council","http://opendatacommunities.org/id/metropolitan-district-council/wolverhampton","ARGOS LTD","207.50","LAC Transitions Team","5310","Client Allowances","13/09/2018"
"Wolverhampton City Council","http://opendatacommunities.org/id/metropolitan-district-council/wolverhampton","WWW.LIFESAVERSDIRECT","487.50","Central Training","5965","Training Expenses","13/09/2018"
"Wolverhampton City Council","http://opendatacommunities.org/id/metropolitan-district-council/wolverhampton","EE STORE R501","8.33","School Crossing Patrol","4814","Comms - Telephone Call charges","13/09/2018"
"Wolverhampton City Council","http://opendatacommunities.org/id/metropolitan-district-council/wolverhampton","POUNDSTRETCHER 147","10.00","Road Safety","5714","Equipment - Purchase","13/09/2018"
"Wolverhampton City Council","http://opendatacommunities.org/id/metropolitan-district-council/wolverhampton","ARGOS LTD","27.99","Street Cleansing Overheads","5310","Equipment - Purchase","13/09/2018"
"Wolverhampton City Council","http://opendatacommunities.org/id/metropolitan-district-council/wolverhampton","Virgin Trains","33.70","Planning","4112","Public Transport","13/09/2018"
"Wolverhampton City Council","http://opendatacommunities.org/id/metropolitan-district-council/wolverhampton","CARVERS","249.22","Northicote Farm","5211","Materials","13/09/2018"
"Wolverhampton City Council","http://opendatacommunities.org/id/metropolitan-district-council/wolverhampton","CARVER/WOLVERHAMPTON/L","403.15","Northicote Farm","5211","Materials","13/09/2018"
"Wolverhampton City Council","http://opendatacommunities.org/id/metropolitan-district-council/wolverhampton","Virgin Trains","93.60","Research & Development","4112","Public Transport","12/09/2018"
"Wolverhampton City Council","http://opendatacommunities.org/id/metropolitan-district-council/wolverhampton","Trainline","186.44","Director of Governance","4112","Public Transport","12/09/2018"
"Wolverhampton City Council","http://opendatacommunities.org/id/metropolitan-district-council/wolverhampton","Trainline","61.98","Research & Development","4112","Public Transport","12/09/2018"
"Wolverhampton City Council","http://opendatacommunities.org/id/metropolitan-district-council/wolverhampton","SAINSBURYS (2340)","1.50","Mayoral Expenses","5411","Hospitality","12/09/2018"
"Wolverhampton City Council","http://opendatacommunities.org/id/metropolitan-district-council/wolverhampton","SAINSBURYS (2340)","3.69","Mayoral Expenses","5411","Hospitality","12/09/2018"
"Wolverhampton City Council","http://opendatacommunities.org/id/metropolitan-district-council/wolverhampton","SAINSBURYS (2340)","5.70","Mayoral Expenses","5411","Hospitality","12/09/2018"
"Wolverhampton City Council","http://opendatacommunities.org/id/metropolitan-district-council/wolverhampton","Trainline","18.55","Safeguarding Admin Resource","4112","Public Transport","12/09/2018"
"Wolverhampton City Council","http://opendatacommunities.org/id/metropolitan-district-council/wolverhampton","TESCO DELIVERY SAVER2","3.49","Towers Outdoor Education Centre","5968","Provisions (Not for resale)","12/09/2018"
"Wolverhampton City Council","http://opendatacommunities.org/id/metropolitan-district-council/wolverhampton","AMZN Mktp UK","1.66","Towers Outdoor Education Centre","5942","Equipment - Purchase","12/09/2018"
"Wolverhampton City Council","http://opendatacommunities.org/id/metropolitan-district-council/wolverhampton","POST OFFICE COUNTER","244.00","Fostering Team & Allowances","9402","Comms - Postage","12/09/2018"
"Wolverhampton City Council","http://opendatacommunities.org/id/metropolitan-district-council/wolverhampton","GOOGLE  ADS3317949200","118.37","Communications & Marketing - General","5968","Subscriptions","12/09/2018"
"Wolverhampton City Council","http://opendatacommunities.org/id/metropolitan-district-council/wolverhampton","Trainline","8.69","Education Business Partnership","4112","Public Transport","12/09/2018"
"Wolverhampton City Council","http://opendatacommunities.org/id/metropolitan-district-council/wolverhampton","AMZ MedX5 GmbH & Co. K","-6.13","Admin & Support","5999","Equipment - Purchase","12/09/2018"
"Wolverhampton City Council","http://opendatacommunities.org/id/metropolitan-district-council/wolverhampton","SIGNATURE","252.00","Admin & Support","8398","Exam Expenses (Non-Employee)","12/09/2018"
"Wolverhampton City Council","http://opendatacommunities.org/id/metropolitan-district-council/wolverhampton","SIGNATURE","248.00","Admin & Support","8398","Exam Expenses (Non-Employee)","12/09/2018"
"Wolverhampton City Council","http://opendatacommunities.org/id/metropolitan-district-council/wolverhampton","WILKO RETAIL LIMIT","16.50","Admin & Support","5722","Equipment - Purchase","12/09/2018"
"Wolverhampton City Council","http://opendatacommunities.org/id/metropolitan-district-council/wolverhampton","Amazon.co.uk","181.12","Strategic ICTS (ICT Serv Budget)","5969","Equipment - Purchase","12/09/2018"
"Wolverhampton City Council","http://opendatacommunities.org/id/metropolitan-district-council/wolverhampton","REGISTRARS OFFICE","10.00","CIN/CP Social Work Unit - Area 3","8299","Section 17","12/09/2018"
"Wolverhampton City Council","http://opendatacommunities.org/id/metropolitan-district-council/wolverhampton","AMZN Mktp UK","9.39","Upper Pendeford Farm Childrens Home","5942","Books","12/09/2018"
"Wolverhampton City Council","http://opendatacommunities.org/id/metropolitan-district-council/wolverhampton","Audible.co.uk","7.99","Upper Pendeford Farm Childrens Home","5968","Subscriptions","12/09/2018"
"Wolverhampton City Council","http://opendatacommunities.org/id/metropolitan-district-council/wolverhampton","ASDA SUPERSTORE","39.18","EIP Locality 5","5411","Training Expenses","12/09/2018"
"Wolverhampton City Council","http://opendatacommunities.org/id/metropolitan-district-council/wolverhampton","SEESAWS DAY NURSERY","283.50","24+ Advanced Learning Loan","8351","Services - Supplies & Services to users","12/09/2018"
"Wolverhampton City Council","http://opendatacommunities.org/id/metropolitan-district-council/wolverhampton","AMZN Mktp UK","11.00","EIP Locality 1","5942","Books","12/09/2018"
"Wolverhampton City Council","http://opendatacommunities.org/id/metropolitan-district-council/wolverhampton","AMZN Mktp UK","5.81","EIP Locality 1","5942","Books","12/09/2018"
"Wolverhampton City Council","http://opendatacommunities.org/id/metropolitan-district-council/wolverhampton","TESCO STORES 5397","8.70","EIP Locality 1","5411","Provisions (Not for resale)","12/09/2018"
"Wolverhampton City Council","http://opendatacommunities.org/id/metropolitan-district-council/wolverhampton","AMZN Mktp UK","14.90","Head of Strategic Commissioning � People","5942","Books","12/09/2018"
"Wolverhampton City Council","http://opendatacommunities.org/id/metropolitan-district-council/wolverhampton","HOO HOOTSUITE INC","83.88","Technical Support","5968","Subscriptions","12/09/2018"
"Wolverhampton City Council","http://opendatacommunities.org/id/metropolitan-district-council/wolverhampton","SAINSBURYS SACAT (2340","25.80","Civic Centre Catering","5411","Provisions (Not for resale)","12/09/2018"
"Wolverhampton City Council","http://opendatacommunities.org/id/metropolitan-district-council/wolverhampton","B&M RETAIL","7.99","Education Catering - General Overheads","5310","Equipment - Purchase","12/09/2018"
"Wolverhampton City Council","http://opendatacommunities.org/id/metropolitan-district-council/wolverhampton","B & Q 1243","22.83","Education Catering - General Overheads","5211","Materials","12/09/2018"
"Wolverhampton City Council","http://opendatacommunities.org/id/metropolitan-district-council/wolverhampton","TOOLSTATION LTD","10.29","Education Catering - General Overheads","5251","Equipment - Purchase","12/09/2018"
"Wolverhampton City Council","http://opendatacommunities.org/id/metropolitan-district-council/wolverhampton","THE COAL AUTHORITY","34.33","West Mids Travelling Children Consortium","9399","Services - Fees and Charges","12/09/2018"
"Wolverhampton City Council","http://opendatacommunities.org/id/metropolitan-district-council/wolverhampton","RIBA SERVICES","116.90","Capital Programme Team","5942","Books","12/09/2018"
"Wolverhampton City Council","http://opendatacommunities.org/id/metropolitan-district-council/wolverhampton","WWW.WESTMINSTER-BRIEFI","390.00","Central Training","8244","Training Expenses","12/09/2018"
"Wolverhampton City Council","http://opendatacommunities.org/id/metropolitan-district-council/wolverhampton","WWW.ARGOS.CO.UK","119.98","CIN/CP Social Work Unit - Area 8","5310","Section 17","12/09/2018"
"Wolverhampton City Council","http://opendatacommunities.org/id/metropolitan-district-council/wolverhampton","Central Taxis Limited","10.90","CIN/CP Social Work Unit - Area 8","4121","Section 17","12/09/2018"
"Wolverhampton City Council","http://opendatacommunities.org/id/metropolitan-district-council/wolverhampton","Virgin Trains","65.70","Scrutiny & Transparency","4112","Public Transport","12/09/2018"
"Wolverhampton City Council","http://opendatacommunities.org/id/metropolitan-district-council/wolverhampton","HMCOURTS-SERVICE.G","75.00","Mental Health Assessment & Care Mgmt","9222","Services - Fees and Charges","11/09/2018"
"Wolverhampton City Council","http://opendatacommunities.org/id/metropolitan-district-council/wolverhampton","AMZ Amazon.co.uk","-45.82","Fleet Management","5969","Equipment - Purchase","11/09/2018"
"Wolverhampton City Council","http://opendatacommunities.org/id/metropolitan-district-council/wolverhampton","Amazon.co.uk","11.64","CIN/CP Social Work Unit - Area 8","5969","Section 17","11/09/2018"
"Wolverhampton City Council","http://opendatacommunities.org/id/metropolitan-district-council/wolverhampton","WP-CENTRAL TAXIS L","10.50","CIN/CP Social Work Unit - Area 8","4121","Section 17","11/09/2018"
"Wolverhampton City Council","http://opendatacommunities.org/id/metropolitan-district-council/wolverhampton","Virgin Trains","412.00","Adoption and Residence Team & Allowances","4112","Public Transport","11/09/2018"
"Wolverhampton City Council","http://opendatacommunities.org/id/metropolitan-district-council/wolverhampton","Virgin Trains","-182.00","Delivery & OCE Development","4112","Public Transport","11/09/2018"
"Wolverhampton City Council","http://opendatacommunities.org/id/metropolitan-district-council/wolverhampton","WWW.ARGOS.CO.UK","33.93","EIP Locality 7","5310","Grant Payments","11/09/2018"
"Wolverhampton City Council","http://opendatacommunities.org/id/metropolitan-district-council/wolverhampton","WWW.LABC.UK.COM","150.00","Building Consultancy","7399","Training Expenses","11/09/2018"
"Wolverhampton City Council","http://opendatacommunities.org/id/metropolitan-district-council/wolverhampton","EB  FIRE SAFETY CONFER","40.77","Planning","7399","Equipment - Purchase","11/09/2018"
"Wolverhampton City Council","http://opendatacommunities.org/id/metropolitan-district-council/wolverhampton","Virgin Trains","147.70","Members Expenses","4112","Public Transport","11/09/2018"
"Wolverhampton City Council","http://opendatacommunities.org/id/metropolitan-district-council/wolverhampton","SPAR LLANBERIS","5.38","Towers Outdoor Education Centre","5411","Provisions (Not for resale)","11/09/2018"
"Wolverhampton City Council","http://opendatacommunities.org/id/metropolitan-district-council/wolverhampton","SP   SPORTS SHOP KFORD","35.81","EIP Locality 4","5734","Grant Payments","11/09/2018"
"Wolverhampton City Council","http://opendatacommunities.org/id/metropolitan-district-council/wolverhampton","FAMILY LINKS","26.00","Fostering Team & Allowances","8398","Services - Supplies & Services to users","11/09/2018"
"Wolverhampton City Council","http://opendatacommunities.org/id/metropolitan-district-council/wolverhampton","Trainline","119.38","GEN Y City Transnational","4112","Public Transport","11/09/2018"
"Wolverhampton City Council","http://opendatacommunities.org/id/metropolitan-district-council/wolverhampton","RESPONSTER PLUS PLAN","15.16","City Direct","5734","Computing - Purchase of Software","11/09/2018"
"Wolverhampton City Council","http://opendatacommunities.org/id/metropolitan-district-council/wolverhampton","TD E-PMT 2MAA006645368","280.00","LAC Transitions Team","9399","Client Allowances","11/09/2018"
"Wolverhampton City Council","http://opendatacommunities.org/id/metropolitan-district-council/wolverhampton","Trainline","49.00","LAC Transitions Team","4112","Public Transport","11/09/2018"
"Wolverhampton City Council","http://opendatacommunities.org/id/metropolitan-district-council/wolverhampton","WWW.RUSSUM.CO.UK","261.23","LAC Transitions Team","5399","Client Allowances","11/09/2018"
"Wolverhampton City Council","http://opendatacommunities.org/id/metropolitan-district-council/wolverhampton","JOHNSONS","18.00","Service Wide","7210","Laundry Expenses","11/09/2018"
"Wolverhampton City Council","http://opendatacommunities.org/id/metropolitan-district-council/wolverhampton","WM MORRISON 024","63.98","Ernest Bold Court","5411","Provisions (Not for resale)","11/09/2018"
"Wolverhampton City Council","http://opendatacommunities.org/id/metropolitan-district-council/wolverhampton","TIPPERS WOLVERHAMPTON","8.88","Culwell Street Depot","5072","R&M - Departmental planned (external)","11/09/2018"
"Wolverhampton City Council","http://opendatacommunities.org/id/metropolitan-district-council/wolverhampton","Trainline","18.75","CIN/CP Social Work Unit - Area 8","4112","Public Transport","11/09/2018"
"Wolverhampton City Council","http://opendatacommunities.org/id/metropolitan-district-council/wolverhampton","BRITANNIA","74.00","MASH","7011","Section 17","11/09/2018"
"Wolverhampton City Council","http://opendatacommunities.org/id/metropolitan-district-council/wolverhampton","IDC WRISTBANDS","43.74","Technical Support","5699","Equipment - Purchase","11/09/2018"
"Wolverhampton City Council","http://opendatacommunities.org/id/metropolitan-district-council/wolverhampton","WICKES","8.74","Community Enablement","5211","Materials","11/09/2018"
"Wolverhampton City Council","http://opendatacommunities.org/id/metropolitan-district-council/wolverhampton","Amazon.co.uk","14.93","Trading Standards","5969","Equipment - Purchase","11/09/2018"
"Wolverhampton City Council","http://opendatacommunities.org/id/metropolitan-district-council/wolverhampton","ARGOS LTD","85.39","LAC Transitions Team","5310","Client Allowances","11/09/2018"
"Wolverhampton City Council","http://opendatacommunities.org/id/metropolitan-district-council/wolverhampton","ARGOS LTD","57.45","LAC Transitions Team","5310","Client Allowances","11/09/2018"
"Wolverhampton City Council","http://opendatacommunities.org/id/metropolitan-district-council/wolverhampton","ARGOS LTD","97.42","LAC Transitions Team","5310","Client Allowances","11/09/2018"
"Wolverhampton City Council","http://opendatacommunities.org/id/metropolitan-district-council/wolverhampton","BCC REGISTER OFFIC","18.50","CIN/CP Social Work Unit - Area 4","9399","Section 17","11/09/2018"
"Wolverhampton City Council","http://opendatacommunities.org/id/metropolitan-district-council/wolverhampton","ONE STOP 0456","15.25","Civic Centre Catering","5411","Provisions (Not for resale)","11/09/2018"
"Wolverhampton City Council","http://opendatacommunities.org/id/metropolitan-district-council/wolverhampton","ASDA SUPERSTORE","6.05","Civic Centre Catering","5411","Provisions (Not for resale)","11/09/2018"
"Wolverhampton City Council","http://opendatacommunities.org/id/metropolitan-district-council/wolverhampton","SAINSBURYS","200.00","Duke Street Bungalows","6011","Provisions (Not for resale)","11/09/2018"
"Wolverhampton City Council","http://opendatacommunities.org/id/metropolitan-district-council/wolverhampton","EB  WORKING WITH BEREA","95.51","Workforce Development","7399","Training Expenses","11/09/2018"
"Wolverhampton City Council","http://opendatacommunities.org/id/metropolitan-district-council/wolverhampton","CILEX LAW SCHOOL LIMIT","52.50","Central Training","8244","Training Expenses","11/09/2018"
"Wolverhampton City Council","http://opendatacommunities.org/id/metropolitan-district-council/wolverhampton","WWW.ETCVENUES.CO.UK","559.98","Central Training","7399","Room Hire","11/09/2018"
"Wolverhampton City Council","http://opendatacommunities.org/id/metropolitan-district-council/wolverhampton","000002200500000","200.00","Headstart Phase 3","6011","Financial Assistance In Exceptional Circ","10/09/2018"
"Wolverhampton City Council","http://opendatacommunities.org/id/metropolitan-district-council/wolverhampton","PRODUCT SUPPORT AG","6.66","Headstart - Young People Engagement","5968","Computing - Maint Agreements","10/09/2018"
"Wolverhampton City Council","http://opendatacommunities.org/id/metropolitan-district-council/wolverhampton","PRODUCT SUPPORT AG","6.66","Headstart - Young People Engagement","5968","Computing - Maint Agreements","10/09/2018"
"Wolverhampton City Council","http://opendatacommunities.org/id/metropolitan-district-council/wolverhampton","000002200500000","150.00","Headstart - Young People Engagement","6011","Financial Assistance In Exceptional Circ","10/09/2018"
"Wolverhampton City Council","http://opendatacommunities.org/id/metropolitan-district-council/wolverhampton","WWW.WMCA.CO.UK","56.50","IMPACT","9399","Client Transport","10/09/2018"
"Wolverhampton City Council","http://opendatacommunities.org/id/metropolitan-district-council/wolverhampton","Amazon.co.uk","190.82","Bert Williams Leisure Centre","5969","Equipment - Purchase","10/09/2018"
"Wolverhampton City Council","http://opendatacommunities.org/id/metropolitan-district-council/wolverhampton","Amazon.co.uk","6.86","Bert Williams Leisure Centre","5969","Equipment - Purchase","10/09/2018"
"Wolverhampton City Council","http://opendatacommunities.org/id/metropolitan-district-council/wolverhampton","AMZN Mktp UK","51.97","Admin & Support","5942","Equipment - Health and Safety","10/09/2018"
"Wolverhampton City Council","http://opendatacommunities.org/id/metropolitan-district-council/wolverhampton","AMZN Mktp UK","24.69","Admin & Support","5942","Equipment - Health and Safety","10/09/2018"
"Wolverhampton City Council","http://opendatacommunities.org/id/metropolitan-district-council/wolverhampton","AMZN Mktp UK","7.00","Admin & Support","5942","Books","10/09/2018"
"Wolverhampton City Council","http://opendatacommunities.org/id/metropolitan-district-council/wolverhampton","Virgin Trains","214.00","Adoption and Residence Team & Allowances","4112","Public Transport","10/09/2018"
"Wolverhampton City Council","http://opendatacommunities.org/id/metropolitan-district-council/wolverhampton","Amazon.co.uk","19.29","Strategic ICTS (ICT Serv Budget)","5969","Books","10/09/2018"
"Wolverhampton City Council","http://opendatacommunities.org/id/metropolitan-district-council/wolverhampton","CardtronicsUK","250.00","Intensive Family Support Team","6011","Financial Assistance In Exceptional Circ","10/09/2018"
"Wolverhampton City Council","http://opendatacommunities.org/id/metropolitan-district-council/wolverhampton","CardtronicsUK","50.00","Intensive Family Support Team","6011","Financial Assistance In Exceptional Circ","10/09/2018"
"Wolverhampton City Council","http://opendatacommunities.org/id/metropolitan-district-council/wolverhampton","ASDA GROCERIES ONLINE",".48","Upper Pendeford Farm Childrens Home","5411","Provisions (Not for resale)","10/09/2018"
"Wolverhampton City Council","http://opendatacommunities.org/id/metropolitan-district-council/wolverhampton","ASDA GROCERIES ONLINE","176.92","Upper Pendeford Farm Childrens Home","5411","Provisions (Not for resale)","10/09/2018"
"Wolverhampton City Council","http://opendatacommunities.org/id/metropolitan-district-council/wolverhampton","Amazon Prime","6.66","Upper Pendeford Farm Childrens Home","5968","Subscriptions","10/09/2018"
"Wolverhampton City Council","http://opendatacommunities.org/id/metropolitan-district-council/wolverhampton","AMZN Mktp UK","6.92","Upper Pendeford Farm Childrens Home","5942","Provisions (Not for resale)","10/09/2018"
"Wolverhampton City Council","http://opendatacommunities.org/id/metropolitan-district-council/wolverhampton","Central Taxis Limited","-12.90","LAC Team","4121","Client Transport","10/09/2018"
"Wolverhampton City Council","http://opendatacommunities.org/id/metropolitan-district-council/wolverhampton","Central Taxis Limited","-11.00","LAC Team","4121","Client Transport","10/09/2018"
"Wolverhampton City Council","http://opendatacommunities.org/id/metropolitan-district-council/wolverhampton","SQ  PLATINUM CHAUFFEUR","400.00","LAC Team","4121","Client Transport","10/09/2018"
"Wolverhampton City Council","http://opendatacommunities.org/id/metropolitan-district-council/wolverhampton","BARCLAYS","60.00","Emergency Duty Team","6011","Financial Assistance In Exceptional Circ","10/09/2018"
"Wolverhampton City Council","http://opendatacommunities.org/id/metropolitan-district-council/wolverhampton","ASDA GROCERIES ONLINE","5.00","Upper Pendeford Farm Childrens Home","5411","Provisions (Not for resale)","10/09/2018"
"Wolverhampton City Council","http://opendatacommunities.org/id/metropolitan-district-council/wolverhampton","SCREWFIX DIRECT","51.63","Central Costs","5211","Materials","10/09/2018"
"Wolverhampton City Council","http://opendatacommunities.org/id/metropolitan-district-council/wolverhampton","AMZN Mktp UK","59.70","Headstart - Employability","5942","Stationery","10/09/2018"
"Wolverhampton City Council","http://opendatacommunities.org/id/metropolitan-district-council/wolverhampton","BRITANNIA","107.00","MASH","7011","Section 17","10/09/2018"
"Wolverhampton City Council","http://opendatacommunities.org/id/metropolitan-district-council/wolverhampton","AMZN Mktp UK","31.02","SEN Sensory Inclusion","5942","Equipment - Purchase","10/09/2018"
"Wolverhampton City Council","http://opendatacommunities.org/id/metropolitan-district-council/wolverhampton","AMZN Mktp UK","40.28","SEN Sensory Inclusion","5942","Equipment - Purchase","10/09/2018"
"Wolverhampton City Council","http://opendatacommunities.org/id/metropolitan-district-council/wolverhampton","UCL BUSINESS PLC","120.00","SEN Sensory Inclusion","7392","Equipment - Purchase","10/09/2018"
"Wolverhampton City Council","http://opendatacommunities.org/id/metropolitan-district-council/wolverhampton","Amazon Prime","-6.66","Education Catering - General Overheads","5968","Subscriptions","10/09/2018"
"Wolverhampton City Council","http://opendatacommunities.org/id/metropolitan-district-council/wolverhampton","WIX.COM","93.13","Technical Support","5968","Subscriptions","10/09/2018"
"Wolverhampton City Council","http://opendatacommunities.org/id/metropolitan-district-council/wolverhampton","WIX.COM","186.26","Technical Support","5817","Computing - Purchase of Software","10/09/2018"
"Wolverhampton City Council","http://opendatacommunities.org/id/metropolitan-district-council/wolverhampton","NUCO TECHNOLOGIES","12.98","Technical Support","7372","Computing - Purchase of Software","10/09/2018"
"Wolverhampton City Council","http://opendatacommunities.org/id/metropolitan-district-council/wolverhampton","Amazon.co.uk","10.40","Global Budgets","5969","Books","10/09/2018"
"Wolverhampton City Council","http://opendatacommunities.org/id/metropolitan-district-council/wolverhampton","AMZN MKTP UK AMAZON.CO","3.51","Global Budgets","5942","Books","10/09/2018"
"Wolverhampton City Council","http://opendatacommunities.org/id/metropolitan-district-council/wolverhampton","AMZN MKTP UK AMAZON.CO","39.50","Global Budgets","5942","Books","10/09/2018"
"Wolverhampton City Council","http://opendatacommunities.org/id/metropolitan-district-council/wolverhampton","WP-CENTRAL TAXIS L","368.00","LAC Team","4121","Client Transport","10/09/2018"
"Wolverhampton City Council","http://opendatacommunities.org/id/metropolitan-district-council/wolverhampton","PREMIER INN","147.08","Head of Service - CINCP","3811","Services - Supplies & Services to users","10/09/2018"
"Wolverhampton City Council","http://opendatacommunities.org/id/metropolitan-district-council/wolverhampton","Amazon.co.uk","29.25","Environmental Crime & Consumer Protectio","5969","Equipment - Purchase","10/09/2018"
"Wolverhampton City Council","http://opendatacommunities.org/id/metropolitan-district-council/wolverhampton","AMZN Mktp UK","121.29","Environmental Protection","5942","Equipment - Purchase","10/09/2018"
"Wolverhampton City Council","http://opendatacommunities.org/id/metropolitan-district-council/wolverhampton","THE QUEEN VICTORIA HOT","210.00","CIN/CP Social Work Unit - Area 5","7011","Section 17","10/09/2018"
"Wolverhampton City Council","http://opendatacommunities.org/id/metropolitan-district-council/wolverhampton","CARESHOP","193.57","Specialist Support Service - North","5999","Equipment - Purchase","10/09/2018"
"Wolverhampton City Council","http://opendatacommunities.org/id/metropolitan-district-council/wolverhampton","TV LICENSING","150.50","Specialist Support Service - North","7392","Services - Consultants","10/09/2018"
"Wolverhampton City Council","http://opendatacommunities.org/id/metropolitan-district-council/wolverhampton","WWW.NISBETS.COM","71.76","Civic Centre Catering","5964","Equipment - Purchase","10/09/2018"
"Wolverhampton City Council","http://opendatacommunities.org/id/metropolitan-district-council/wolverhampton","TRFSA   THOMSONREUTERS","219.00","Corporate Procurement Unit","8999","Services - Professional Fees","10/09/2018"
"Wolverhampton City Council","http://opendatacommunities.org/id/metropolitan-district-council/wolverhampton","WESTMINSTER FORUM","230.00","Member Training","7392","Training Expenses","10/09/2018"
"Wolverhampton City Council","http://opendatacommunities.org/id/metropolitan-district-council/wolverhampton","TRAVELODGE","69.00","CIN/CP Social Work Unit - Area 5","3615","Section 17","10/09/2018"
"Wolverhampton City Council","http://opendatacommunities.org/id/metropolitan-district-council/wolverhampton","Virgin Trains","-172.00","Delivery & OCE Development","4112","Public Transport","10/09/2018"
"Wolverhampton City Council","http://opendatacommunities.org/id/metropolitan-district-council/wolverhampton","WOLVERHAMPTON CC","8.33","Headstart Phase 3","7523","Parking Fees","10/09/2018"
"Wolverhampton City Council","http://opendatacommunities.org/id/metropolitan-district-council/wolverhampton","DUNELM LTD","55.00","Towers Outdoor Education Centre","5714","Fixtures and Fittings - Purchases","10/09/2018"
"Wolverhampton City Council","http://opendatacommunities.org/id/metropolitan-district-council/wolverhampton","TESCO STORES 5194","26.00","Towers Outdoor Education Centre","5411","Equipment - Purchase","10/09/2018"
"Wolverhampton City Council","http://opendatacommunities.org/id/metropolitan-district-council/wolverhampton","TREBORTH GARDEN CE","13.82","Towers Outdoor Education Centre","5541","Fixtures and Fittings - Purchases","10/09/2018"
"Wolverhampton City Council","http://opendatacommunities.org/id/metropolitan-district-council/wolverhampton","TREBORTH GARDEN CE","5.99","Towers Outdoor Education Centre","5541","Fixtures and Fittings - Purchases","10/09/2018"
"Wolverhampton City Council","http://opendatacommunities.org/id/metropolitan-district-council/wolverhampton","B & Q 1112","50.30","Towers Outdoor Education Centre","5211","Fixtures and Fittings - Purchases","10/09/2018"
"Wolverhampton City Council","http://opendatacommunities.org/id/metropolitan-district-council/wolverhampton","oceanmedia.co.uk","540.00","General Housing Administration","7399","Equipment - Purchase","10/09/2018"
"Wolverhampton City Council","http://opendatacommunities.org/id/metropolitan-district-council/wolverhampton","RYMAN","8.33","Delivery & OCE Development","5943","Stationery","10/09/2018"
"Wolverhampton City Council","http://opendatacommunities.org/id/metropolitan-district-council/wolverhampton","ASDA GROCERIES ONLINE","48.38","EIP Locality 4","5411","Grant Payments","10/09/2018"
"Wolverhampton City Council","http://opendatacommunities.org/id/metropolitan-district-council/wolverhampton","CLOCKING SYSTEM","225.60","Ground Maintenance East","5085","Equipment - Purchase","10/09/2018"
"Wolverhampton City Council","http://opendatacommunities.org/id/metropolitan-district-council/wolverhampton","FACEBK DZUKXH2BR2","500.00","Communications & Marketing - General","7311","Marketing \ Non-staff advertising","10/09/2018"
"Wolverhampton City Council","http://opendatacommunities.org/id/metropolitan-district-council/wolverhampton","AMZN Mktp UK","18.23","WV Active Marketing","5942","Books","10/09/2018"
"Wolverhampton City Council","http://opendatacommunities.org/id/metropolitan-district-council/wolverhampton","EB  REDUCING LONG STAY","200.00","Adult Services - East","7399","Equipment - Purchase","07/09/2018"
"Wolverhampton City Council","http://opendatacommunities.org/id/metropolitan-district-council/wolverhampton","WWW.IRONMONGERYDIRECT.","118.50","Celebrating Age-ACE","5231","Equipment - Purchase","07/09/2018"
"Wolverhampton City Council","http://opendatacommunities.org/id/metropolitan-district-council/wolverhampton","WOLVERHAMPTON CC","5.42","Headstart Phase 3","7523","Parking Fees","07/09/2018"
"Wolverhampton City Council","http://opendatacommunities.org/id/metropolitan-district-council/wolverhampton","ARGOS RETAIL GROUP","199.95","Early Years & Universal Service","5310","Equipment - Purchase","07/09/2018"
"Wolverhampton City Council","http://opendatacommunities.org/id/metropolitan-district-council/wolverhampton","NATIONWIDE","100.00","EIP Locality 2","6011","Grant Payments","07/09/2018"
"Wolverhampton City Council","http://opendatacommunities.org/id/metropolitan-district-council/wolverhampton","LOYD 89 CHURCH STREET","250.00","EIP Locality 2","6011","Grant Payments","07/09/2018"
"Wolverhampton City Council","http://opendatacommunities.org/id/metropolitan-district-council/wolverhampton","000002200500000","250.00","Childrens with Disabilities Team","6011","Financial Assistance In Exceptional Circ","07/09/2018"
"Wolverhampton City Council","http://opendatacommunities.org/id/metropolitan-district-council/wolverhampton","POST OFFICE COUNTER","6.50","Adoption and Residence Team & Allowances","9402","Comms - Postage","07/09/2018"
"Wolverhampton City Council","http://opendatacommunities.org/id/metropolitan-district-council/wolverhampton","COSTA COFFEE 43043885","4.65","Economic Development","5814","Educ Trips, Holidays, Outings, Activity","07/09/2018"
"Wolverhampton City Council","http://opendatacommunities.org/id/metropolitan-district-council/wolverhampton","CURRYS S/S","16.66","Fostering Team & Allowances","5732","Equipment - Purchase","07/09/2018"
"Wolverhampton City Council","http://opendatacommunities.org/id/metropolitan-district-council/wolverhampton","GOOGLE  ADS9680351324","500.00","Communications & Marketing - General","5968","Subscriptions","07/09/2018"
"Wolverhampton City Council","http://opendatacommunities.org/id/metropolitan-district-council/wolverhampton","GREGGS PLC","28.00","Mayoral Expenses","5812","Hospitality","07/09/2018"
"Wolverhampton City Council","http://opendatacommunities.org/id/metropolitan-district-council/wolverhampton","AMZN Mktp UK","5.92","Admin & Support","5942","Equipment - Health and Safety","07/09/2018"
"Wolverhampton City Council","http://opendatacommunities.org/id/metropolitan-district-council/wolverhampton","AMZN Mktp UK","17.14","Admin & Support","5942","Equipment - Health and Safety","07/09/2018"
"Wolverhampton City Council","http://opendatacommunities.org/id/metropolitan-district-council/wolverhampton","AMZN Mktp UK","20.36","Admin & Support","5942","Equipment - Health and Safety","07/09/2018"
"Wolverhampton City Council","http://opendatacommunities.org/id/metropolitan-district-council/wolverhampton","AMZN Mktp UK","20.37","Admin & Support","5942","Equipment - Health and Safety","07/09/2018"
"Wolverhampton City Council","http://opendatacommunities.org/id/metropolitan-district-council/wolverhampton","AMZN Mktp UK","25.00","Admin & Support","5942","First Aid Requisites","07/09/2018"
"Wolverhampton City Council","http://opendatacommunities.org/id/metropolitan-district-council/wolverhampton","NAMESCO","34.99","City Direct","4816","Computing - Purchase of Software","07/09/2018"
"Wolverhampton City Council","http://opendatacommunities.org/id/metropolitan-district-council/wolverhampton","WWW.ARGOS.CO.UK","78.28","LAC Transitions Team","5310","Client Allowances","07/09/2018"
"Wolverhampton City Council","http://opendatacommunities.org/id/metropolitan-district-council/wolverhampton","Trainline","20.07","LAC Transitions Team","4112","Client Allowances","07/09/2018"
"Wolverhampton City Council","http://opendatacommunities.org/id/metropolitan-district-council/wolverhampton","REGISTRARS OFFICE","10.00","Adoption and Residence Team & Allowances","8299","Services - Fees and Charges","07/09/2018"
"Wolverhampton City Council","http://opendatacommunities.org/id/metropolitan-district-council/wolverhampton","Virgin Trains","49.30","Strategic Financial Services","4112","Public Transport","07/09/2018"
"Wolverhampton City Council","http://opendatacommunities.org/id/metropolitan-district-council/wolverhampton","Virgin Trains","93.60","Strategic Financial Services","4112","Public Transport","07/09/2018"
"Wolverhampton City Council","http://opendatacommunities.org/id/metropolitan-district-council/wolverhampton","SPORTSDIRECT.COM","292.99","Central Baths","5941","Equipment - Purchase","07/09/2018"
"Wolverhampton City Council","http://opendatacommunities.org/id/metropolitan-district-council/wolverhampton","WOLVERHAMPTON T/O","5.90","Art Gallery","4112","Public Transport","07/09/2018"
"Wolverhampton City Council","http://opendatacommunities.org/id/metropolitan-district-council/wolverhampton","PREMIER INN","147.50","Art Gallery","3811","Services - Supplies & Services to users","07/09/2018"
"Wolverhampton City Council","http://opendatacommunities.org/id/metropolitan-district-council/wolverhampton","WWW.IKEA.COM","93.54","Education And Access","5712","Equipment - Purchase","07/09/2018"
"Wolverhampton City Council","http://opendatacommunities.org/id/metropolitan-district-council/wolverhampton","WOLVERHAMPTON RACECOUR","57.50","CIN/CP Social Work Unit - Area 5","7011","Section 17","07/09/2018"
"Wolverhampton City Council","http://opendatacommunities.org/id/metropolitan-district-council/wolverhampton","Trainline","51.51","CIN/CP Social Work Unit - Area 4","4112","Section 17","07/09/2018"
"Wolverhampton City Council","http://opendatacommunities.org/id/metropolitan-district-council/wolverhampton","SCREWFIX WOLVERHAM","-66.65","Site works","5211","Equipment - Purchase","07/09/2018"
"Wolverhampton City Council","http://opendatacommunities.org/id/metropolitan-district-council/wolverhampton","WWW.WMCA.CO.UK","154.00","CIN/CP Social Work Unit - Area 3","9399","Client Transport","07/09/2018"
"Wolverhampton City Council","http://opendatacommunities.org/id/metropolitan-district-council/wolverhampton","Virgin Trains","102.80","Scrutiny & Transparency","4112","Public Transport","07/09/2018"
"Wolverhampton City Council","http://opendatacommunities.org/id/metropolitan-district-council/wolverhampton","WOLVERHAMPTON T/O","7.80","Adult Services - East","4112","Public Transport","06/09/2018"
"Wolverhampton City Council","http://opendatacommunities.org/id/metropolitan-district-council/wolverhampton","WOLVERHAMPTON T/O","112.00","Service Director Adults","4112","Public Transport","06/09/2018"
"Wolverhampton City Council","http://opendatacommunities.org/id/metropolitan-district-council/wolverhampton","LOVE2SHOP.CO.UK","249.25","IMPACT","8641","Educ Trips, Holidays, Outings, Activity","06/09/2018"
"Wolverhampton City Council","http://opendatacommunities.org/id/metropolitan-district-council/wolverhampton","CURRYS ONLINE","136.65","Art Gallery","5732","Equipment - Purchase","06/09/2018"
"Wolverhampton City Council","http://opendatacommunities.org/id/metropolitan-district-council/wolverhampton","LIDDELL ELECTRICAL DIS","32.00","Caretakers Community Centre","5065","Equipment - R & M","06/09/2018"
"Wolverhampton City Council","http://opendatacommunities.org/id/metropolitan-district-council/wolverhampton","LOYD 37 CHURCH STREET","90.00","EIP Locality 8","6011","Grant Payments","06/09/2018"
"Wolverhampton City Council","http://opendatacommunities.org/id/metropolitan-district-council/wolverhampton","Virgin Trains","209.00","Adoption and Residence Team & Allowances","4112","Public Transport","06/09/2018"
"Wolverhampton City Council","http://opendatacommunities.org/id/metropolitan-district-council/wolverhampton","Virgin Trains","-192.00","Fostering Team & Allowances","4112","Public Transport","06/09/2018"
"Wolverhampton City Council","http://opendatacommunities.org/id/metropolitan-district-council/wolverhampton","Amazon.co.uk","97.36","Admin & Support","5969","Equipment - Purchase","06/09/2018"
"Wolverhampton City Council","http://opendatacommunities.org/id/metropolitan-district-council/wolverhampton","Amazon.co.uk","11.52","LAC Education Team (LACE)","5969","Equipment - Purchase","06/09/2018"
"Wolverhampton City Council","http://opendatacommunities.org/id/metropolitan-district-council/wolverhampton","WWW.LIFESAVERSDIRECT","552.25","Central Baths","5965","Equipment - Purchase","06/09/2018"
"Wolverhampton City Council","http://opendatacommunities.org/id/metropolitan-district-council/wolverhampton","ASDA GROCERIES ONLINE","-.10","Upper Pendeford Farm Childrens Home","5411","Provisions (Not for resale)","06/09/2018"
"Wolverhampton City Council","http://opendatacommunities.org/id/metropolitan-district-council/wolverhampton","ASDA GROCERIES ONLINE","73.20","Upper Pendeford Farm Childrens Home","5411","Provisions (Not for resale)","06/09/2018"
"Wolverhampton City Council","http://opendatacommunities.org/id/metropolitan-district-council/wolverhampton","AMZN Mktp UK","7.98","Upper Pendeford Farm Childrens Home","5942","Books","06/09/2018"
"Wolverhampton City Council","http://opendatacommunities.org/id/metropolitan-district-council/wolverhampton","ASDA SUPERSTORE","14.27","EIP Locality 5","5411","Provisions (Not for resale)","06/09/2018"
"Wolverhampton City Council","http://opendatacommunities.org/id/metropolitan-district-council/wolverhampton","COSTA COFFEE 43043885","30.00","Central Costs","5814","Marketing \ Non-staff advertising","06/09/2018"
"Wolverhampton City Council","http://opendatacommunities.org/id/metropolitan-district-council/wolverhampton","ARGOS LTD","26.00","LAC Transitions Team","5310","Client Allowances","06/09/2018"
"Wolverhampton City Council","http://opendatacommunities.org/id/metropolitan-district-council/wolverhampton","FlybeA5WZ A5WZYT","105.99","Art Gallery","4511","Public Transport","06/09/2018"
"Wolverhampton City Council","http://opendatacommunities.org/id/metropolitan-district-council/wolverhampton","PAYPAL  MUSEUMSASSC","490.00","Art Gallery","8398","Services - Supplies & Services to users","06/09/2018"
"Wolverhampton City Council","http://opendatacommunities.org/id/metropolitan-district-council/wolverhampton","Virgin Trains","7.80","Children & Young People Support Costs","4112","Public Transport","06/09/2018"
"Wolverhampton City Council","http://opendatacommunities.org/id/metropolitan-district-council/wolverhampton","Amazon.co.uk","11.62","Global Budgets","5969","Books","06/09/2018"
"Wolverhampton City Council","http://opendatacommunities.org/id/metropolitan-district-council/wolverhampton","Amazon.co.uk","8.99","Global Budgets","5969","Books","06/09/2018"
"Wolverhampton City Council","http://opendatacommunities.org/id/metropolitan-district-council/wolverhampton","CREATIONS","68.00","Global Budgets","5992","Stationery","06/09/2018"
"Wolverhampton City Council","http://opendatacommunities.org/id/metropolitan-district-council/wolverhampton","CardtronicsUK","30.00","EIP Locality 3","6011","Grant Payments","06/09/2018"
"Wolverhampton City Council","http://opendatacommunities.org/id/metropolitan-district-council/wolverhampton","WWW.WMCA.CO.UK","88.00","CIN/CP Social Work Unit - Area 4","9399","Section 17","06/09/2018"
"Wolverhampton City Council","http://opendatacommunities.org/id/metropolitan-district-council/wolverhampton","EE STORE R501","8.33","School Crossing Patrol","4814","Comms - Telephone Call charges","06/09/2018"
"Wolverhampton City Council","http://opendatacommunities.org/id/metropolitan-district-council/wolverhampton","EE STORE R501","8.33","School Crossing Patrol","4814","Comms - Telephone Call charges","06/09/2018"
"Wolverhampton City Council","http://opendatacommunities.org/id/metropolitan-district-council/wolverhampton","EE STORE R501","8.33","School Crossing Patrol","4814","Comms - Telephone Call charges","06/09/2018"
"Wolverhampton City Council","http://opendatacommunities.org/id/metropolitan-district-council/wolverhampton","PO BUNKER S HILL","58.33","Ernest Bold Court","6011","Services - Supplies & Services to users","06/09/2018"
"Wolverhampton City Council","http://opendatacommunities.org/id/metropolitan-district-council/wolverhampton","THE COAL AUTHORITY","95.16","Disposal Costs","9399","Services - Professional Fees","06/09/2018"
"Wolverhampton City Council","http://opendatacommunities.org/id/metropolitan-district-council/wolverhampton","CITY OF WOLVERHAMPTON","30.00","Head of Service - CINCP","9399","Services - Professional Fees","06/09/2018"
"Wolverhampton City Council","http://opendatacommunities.org/id/metropolitan-district-council/wolverhampton","HMCOURTS-SERVICE.G","75.00","Mental Health Assessment & Care Mgmt","9222","Services - Fees and Charges","06/09/2018"
"Wolverhampton City Council","http://opendatacommunities.org/id/metropolitan-district-council/wolverhampton","AMZN Mktp UK","14.92","Parks - Ranger Service","5942","Equipment - Purchase","06/09/2018"
"Wolverhampton City Council","http://opendatacommunities.org/id/metropolitan-district-council/wolverhampton","GRO HM PASSPORT OFFICE","-9.25","LAC Transitions Team","9399","Client Allowances","06/09/2018"
"Wolverhampton City Council","http://opendatacommunities.org/id/metropolitan-district-council/wolverhampton","AMZN Mktp UK","16.17","Members Expenses","5942","Equipment - Purchase","06/09/2018"
"Wolverhampton City Council","http://opendatacommunities.org/id/metropolitan-district-council/wolverhampton","WWW.ARGOS.CO.UK","124.17","Children & Young People Support Costs","5310","Client Allowances","05/09/2018"
"Wolverhampton City Council","http://opendatacommunities.org/id/metropolitan-district-council/wolverhampton","WWW.ARGOS.CO.UK","101.62","Children & Young People Support Costs","5310","Client Allowances","05/09/2018"
"Wolverhampton City Council","http://opendatacommunities.org/id/metropolitan-district-council/wolverhampton","WARNER BROS STUDIO","443.75","SACRE","7991","Educ Trips, Holidays, Outings, Activity","05/09/2018"
"Wolverhampton City Council","http://opendatacommunities.org/id/metropolitan-district-council/wolverhampton","THE POST OFFICE","6.50","Collections","9402","Comms - Postage","05/09/2018"
"Wolverhampton City Council","http://opendatacommunities.org/id/metropolitan-district-council/wolverhampton","NCP WOLVERHAMPTON CHUR","2.00","Headstart Phase 3","7523","Parking Fees","05/09/2018"
"Wolverhampton City Council","http://opendatacommunities.org/id/metropolitan-district-council/wolverhampton","Amazon.co.uk","40.20","EIP Locality 8","5969","Grant Payments","05/09/2018"
"Wolverhampton City Council","http://opendatacommunities.org/id/metropolitan-district-council/wolverhampton","ROYAL BK OF SCOTLAND","250.00","CIN/CP Social Work Unit - Area 6","6011","No Recourse to Public Funds","05/09/2018"
"Wolverhampton City Council","http://opendatacommunities.org/id/metropolitan-district-council/wolverhampton","POST OFFICE COUNTER","1.40","BP Portrait Award","9402","Comms - Postage","05/09/2018"
"Wolverhampton City Council","http://opendatacommunities.org/id/metropolitan-district-council/wolverhampton","GOVERNMENT EVENTS","386.58","General Housing Administration","5734","Computing - Purchase of Software","05/09/2018"
"Wolverhampton City Council","http://opendatacommunities.org/id/metropolitan-district-council/wolverhampton","Virgin Trains","202.00","Fostering Team & Allowances","4112","Public Transport","05/09/2018"
"Wolverhampton City Council","http://opendatacommunities.org/id/metropolitan-district-council/wolverhampton","FACEBK Z6X2YFAB82","160.00","WV Active Marketing","7311","Marketing \ Non-staff advertising","05/09/2018"
"Wolverhampton City Council","http://opendatacommunities.org/id/metropolitan-district-council/wolverhampton","FACEBK TDJEEJW9R2","501.29","Communications & Marketing - General","7311","Marketing \ Non-staff advertising","05/09/2018"
"Wolverhampton City Council","http://opendatacommunities.org/id/metropolitan-district-council/wolverhampton","WOLVERHAMPTON CC","10.42","Headstart - Young People Engagement","7523","Parking Fees","05/09/2018"
"Wolverhampton City Council","http://opendatacommunities.org/id/metropolitan-district-council/wolverhampton","HOTJAR","82.74","City Direct","5045","Computing - Purchase of Hardware","05/09/2018"
"Wolverhampton City Council","http://opendatacommunities.org/id/metropolitan-district-council/wolverhampton","W M MORRISONS","8.33","LAC Transitions Team","5411","Client Allowances","05/09/2018"
"Wolverhampton City Council","http://opendatacommunities.org/id/metropolitan-district-council/wolverhampton","Amazon.co.uk","16.26","Strategic ICTS (ICT Serv Budget)","5969","Equipment - Purchase","05/09/2018"
"Wolverhampton City Council","http://opendatacommunities.org/id/metropolitan-district-council/wolverhampton","Amazon.co.uk","15.97","Strategic ICTS (ICT Serv Budget)","5969","Equipment - Purchase","05/09/2018"
"Wolverhampton City Council","http://opendatacommunities.org/id/metropolitan-district-council/wolverhampton","AMZN Mktp UK","115.00","Strategic ICTS (ICT Serv Budget)","5942","Books","05/09/2018"
"Wolverhampton City Council","http://opendatacommunities.org/id/metropolitan-district-council/wolverhampton","AMZN Mktp UK","7.49","Mental Health Assessment & Care Mgmt","5942","Books","05/09/2018"
"Wolverhampton City Council","http://opendatacommunities.org/id/metropolitan-district-council/wolverhampton","AMZN Mktp UK","8.74","Mental Health Assessment & Care Mgmt","5942","Books","05/09/2018"
"Wolverhampton City Council","http://opendatacommunities.org/id/metropolitan-district-council/wolverhampton","WWW.3WMLTD.COM","38.75","Headstart - Employability","7399","Stationery","05/09/2018"
"Wolverhampton City Council","http://opendatacommunities.org/id/metropolitan-district-council/wolverhampton","WWW.HOBBYCRAFT.CO.UK","91.67","Headstart - Employability","5970","Materials","05/09/2018"
"Wolverhampton City Council","http://opendatacommunities.org/id/metropolitan-district-council/wolverhampton","SAINSBURYS 2040","8.45","Duke Street Bungalows","5411","Equipment - Purchase","05/09/2018"
"Wolverhampton City Council","http://opendatacommunities.org/id/metropolitan-district-council/wolverhampton","AMZN Mktp UK","10.41","Global Budgets","5942","Books","05/09/2018"
"Wolverhampton City Council","http://opendatacommunities.org/id/metropolitan-district-council/wolverhampton","Amazon Prime","7.99","Education And Access","5968","Subscriptions","05/09/2018"
"Wolverhampton City Council","http://opendatacommunities.org/id/metropolitan-district-council/wolverhampton","WWW.SHROPSHIRE-C.GOV.","11.00","LAC Team","8220","Financial Assistance In Exceptional Circ","05/09/2018"
"Wolverhampton City Council","http://opendatacommunities.org/id/metropolitan-district-council/wolverhampton","POST OFFICE COUNTER","5.42","LAC Transitions Team","9402","Client Allowances","05/09/2018"
"Wolverhampton City Council","http://opendatacommunities.org/id/metropolitan-district-council/wolverhampton","Virgin Trains","61.20","Food & Consumer Safety","4112","Services - Fees and Charges","05/09/2018"
"Wolverhampton City Council","http://opendatacommunities.org/id/metropolitan-district-council/wolverhampton","TFL VISITOR SHOP","28.30","Food & Consumer Safety","5965","Services - Fees and Charges","05/09/2018"
"Wolverhampton City Council","http://opendatacommunities.org/id/metropolitan-district-council/wolverhampton","WWW.CORAM.ORG.UK","300.00","Workforce Development","8398","Training Expenses","05/09/2018"
"Wolverhampton City Council","http://opendatacommunities.org/id/metropolitan-district-council/wolverhampton","VAUXHALL WOLVERHAM","192.60","Fleet Management","7538","Equipment - Purchase","05/09/2018"
"Wolverhampton City Council","http://opendatacommunities.org/id/metropolitan-district-council/wolverhampton","VW VAN CENTRE","15.85","Fleet Management","5511","Equipment - Purchase","05/09/2018"
"Wolverhampton City Council","http://opendatacommunities.org/id/metropolitan-district-council/wolverhampton","GRO HM PASSPORT OFFICE","-23.40","CIN/CP Social Work Unit - Area 8","9399","Section 17","05/09/2018"
"Wolverhampton City Council","http://opendatacommunities.org/id/metropolitan-district-council/wolverhampton","AMZN Mktp UK","16.23","Parks - Ranger Service","5942","Equipment - Purchase","05/09/2018"
"Wolverhampton City Council","http://opendatacommunities.org/id/metropolitan-district-council/wolverhampton","AMZN Mktp UK","12.46","Parks - Ranger Service","5942","Equipment - Purchase","05/09/2018"
"Wolverhampton City Council","http://opendatacommunities.org/id/metropolitan-district-council/wolverhampton","Virgin Trains","108.00","Planning","4112","Public Transport","05/09/2018"
"Wolverhampton City Council","http://opendatacommunities.org/id/metropolitan-district-council/wolverhampton","POST OFFICE COUNTER","5.50","Inclusion Support","9402","Comms - Postage","04/09/2018"
"Wolverhampton City Council","http://opendatacommunities.org/id/metropolitan-district-council/wolverhampton","GRO HM PASSPORT OFFICE","23.40","CIN/CP Social Work Unit - Area 8","9399","Section 17","04/09/2018"
"Wolverhampton City Council","http://opendatacommunities.org/id/metropolitan-district-council/wolverhampton","Trainline","9.75","CIN/CP Social Work Unit - Area 8","4112","Section 17","04/09/2018"
"Wolverhampton City Council","http://opendatacommunities.org/id/metropolitan-district-council/wolverhampton","Trainline","10.05","CIN/CP Social Work Unit - Area 8","4112","Section 17","04/09/2018"
"Wolverhampton City Council","http://opendatacommunities.org/id/metropolitan-district-council/wolverhampton","WWW.ARGOS.CO.UK","239.99","EIP Locality 7","5310","Grant Payments","04/09/2018"
"Wolverhampton City Council","http://opendatacommunities.org/id/metropolitan-district-council/wolverhampton","AMZN Mktp UK","148.31","EIP Locality 7","5942","Equipment - Purchase","04/09/2018"
"Wolverhampton City Council","http://opendatacommunities.org/id/metropolitan-district-council/wolverhampton","123-REG.CO.UK","19.98","Arts Publicity","4816","Computing - Purchase of Software","04/09/2018"
"Wolverhampton City Council","http://opendatacommunities.org/id/metropolitan-district-council/wolverhampton","Raynor Stores LTD","3.32","Mayoral Expenses","5251","Stationery","04/09/2018"
"Wolverhampton City Council","http://opendatacommunities.org/id/metropolitan-district-council/wolverhampton","Amazon.co.uk","132.27","HOS Early Intervention","5969","Equipment - Purchase","04/09/2018"
"Wolverhampton City Council","http://opendatacommunities.org/id/metropolitan-district-council/wolverhampton","SCREWFIX WOLVERHAM","44.55","Wholesale Market Facilities Management","5211","Materials","04/09/2018"
"Wolverhampton City Council","http://opendatacommunities.org/id/metropolitan-district-council/wolverhampton","S & B WASTE","171.00","The Maltings","4900","R5003","04/09/2018"
"Wolverhampton City Council","http://opendatacommunities.org/id/metropolitan-district-council/wolverhampton","PREMIER INN 44536560","7.50","Art Gallery","5812","Educ Trips, Holidays, Outings, Activity","04/09/2018"
"Wolverhampton City Council","http://opendatacommunities.org/id/metropolitan-district-council/wolverhampton","WWW.WOLVERHAMPTON.GOV.","323.56","LAC Transitions Team","9399","Client Allowances","04/09/2018"
"Wolverhampton City Council","http://opendatacommunities.org/id/metropolitan-district-council/wolverhampton","WWW.WOLVERHAMPTON.GOV.","500.00","LAC Transitions Team","9399","Client Allowances","04/09/2018"
"Wolverhampton City Council","http://opendatacommunities.org/id/metropolitan-district-council/wolverhampton","WWW.WOLVERHAMPTON.GOV.","387.52","LAC Transitions Team","9399","Client Allowances","04/09/2018"
"Wolverhampton City Council","http://opendatacommunities.org/id/metropolitan-district-council/wolverhampton","WWW.WOLVERHAMPTON.GOV.","500.00","LAC Transitions Team","9399","Client Allowances","04/09/2018"
"Wolverhampton City Council","http://opendatacommunities.org/id/metropolitan-district-council/wolverhampton","HUGHES","144.00","LAC Transitions Team","5732","Client Allowances","04/09/2018"
"Wolverhampton City Council","http://opendatacommunities.org/id/metropolitan-district-council/wolverhampton","WWW.WMCA.CO.UK","65.50","IMPACT","9399","Client Transport","04/09/2018"
"Wolverhampton City Council","http://opendatacommunities.org/id/metropolitan-district-council/wolverhampton","BE EVENT HIRE","720.00","Wolverhampton Indoor and Open Market","7394","Equipment - Purchase","04/09/2018"
"Wolverhampton City Council","http://opendatacommunities.org/id/metropolitan-district-council/wolverhampton","ARGOS LTD","31.00","Duke Street Bungalows","5310","Equipment - Purchase","04/09/2018"
"Wolverhampton City Council","http://opendatacommunities.org/id/metropolitan-district-council/wolverhampton","AMZ Keple","-7.91","Blakenhall Commty & Healthy Living Ctr","5999","Equipment - Purchase","04/09/2018"
"Wolverhampton City Council","http://opendatacommunities.org/id/metropolitan-district-council/wolverhampton","WWW.WMCA.ORG.UK","90.00","LAC Transitions Team","9399","Client Allowances","04/09/2018"
"Wolverhampton City Council","http://opendatacommunities.org/id/metropolitan-district-council/wolverhampton","MINIBUS TRANSFERS MINI","154.50","Central Training","5734","Training Expenses","04/09/2018"
"Wolverhampton City Council","http://opendatacommunities.org/id/metropolitan-district-council/wolverhampton","ASDA GROCERIES ONLINE","-2.00","Ernest Bold Court","5411","Provisions (Not for resale)","04/09/2018"
"Wolverhampton City Council","http://opendatacommunities.org/id/metropolitan-district-council/wolverhampton","ASDA GROCERIES ONLINE","-.29","Ernest Bold Court","5411","Provisions (Not for resale)","04/09/2018"
"Wolverhampton City Council","http://opendatacommunities.org/id/metropolitan-district-council/wolverhampton","ASDA GROCERIES ONLINE","59.05","Ernest Bold Court","5411","Provisions (Not for resale)","04/09/2018"
"Wolverhampton City Council","http://opendatacommunities.org/id/metropolitan-district-council/wolverhampton","CUMMINGS BROTHERS LOCK","10.00","EIP Locality 3","7399","Equipment - Purchase","03/09/2018"
"Wolverhampton City Council","http://opendatacommunities.org/id/metropolitan-district-council/wolverhampton","ASDA SUPERSTORE","5.83","LAC Transitions Team","5411","Client Allowances","03/09/2018"
"Wolverhampton City Council","http://opendatacommunities.org/id/metropolitan-district-council/wolverhampton","ASDA GEORGE COM LEEDS","-5.00","LAC Transitions Team","5411","Client Allowances","03/09/2018"
"Wolverhampton City Council","http://opendatacommunities.org/id/metropolitan-district-council/wolverhampton","ADOBE SYSTEMS SOFTWARE","5.99","WV Active Marketing","5734","Computing - Purchase of Software","03/09/2018"
"Wolverhampton City Council","http://opendatacommunities.org/id/metropolitan-district-council/wolverhampton","HMCOURTS-SERVICE.G","62.50","Mental Health Assessment & Care Mgmt","9222","Services - Fees and Charges","03/09/2018"
"Wolverhampton City Council","http://opendatacommunities.org/id/metropolitan-district-council/wolverhampton","PAYPAL  ETRNLBEAUTY","76.67","IMPACT","7399","Equipment - Purchase","03/09/2018"
"Wolverhampton City Council","http://opendatacommunities.org/id/metropolitan-district-council/wolverhampton","WM MORRISON 024","10.00","Ernest Bold Court","5411","Provisions (Not for resale)","03/09/2018"
"Wolverhampton City Council","http://opendatacommunities.org/id/metropolitan-district-council/wolverhampton","ALDI 48 772","2.57","Mayoral Expenses","5411","Hospitality","03/09/2018"
"Wolverhampton City Council","http://opendatacommunities.org/id/metropolitan-district-council/wolverhampton","THE FLOWER STALL","125.00","Mayoral Expenses","5992","Hospitality","03/09/2018"
"Wolverhampton City Council","http://opendatacommunities.org/id/metropolitan-district-council/wolverhampton","FACEBK MSNUWFEC22","9.44","Admin & Support","7311","Marketing \ Non-staff advertising","03/09/2018"
"Wolverhampton City Council","http://opendatacommunities.org/id/metropolitan-district-council/wolverhampton","NAMESCO","93.95","Communications & Marketing - General","4816","Computing - Purchase of Software","03/09/2018"
"Wolverhampton City Council","http://opendatacommunities.org/id/metropolitan-district-council/wolverhampton","QBIC HOTEL LONDON CITY","15.00","LAC Transitions Team","7011","Client Allowances","03/09/2018"
"Wolverhampton City Council","http://opendatacommunities.org/id/metropolitan-district-council/wolverhampton","Trainline","50.70","CIN/CP Social Work Unit - Area 4","4112","Public Transport","03/09/2018"
"Wolverhampton City Council","http://opendatacommunities.org/id/metropolitan-district-council/wolverhampton","GRO HM PASSPORT OFFICE","-23.40","CIN/CP Social Work Unit - Area 8","9399","Section 17","03/09/2018"
"Wolverhampton City Council","http://opendatacommunities.org/id/metropolitan-district-council/wolverhampton","AMZN Mktp UK","104.99","EIP Locality 7","5942","Grant Payments","03/09/2018"
"Wolverhampton City Council","http://opendatacommunities.org/id/metropolitan-district-council/wolverhampton","Virgin Trains","71.50","Members Expenses","4112","Public Transport","03/09/2018"
"Wolverhampton City Council","http://opendatacommunities.org/id/metropolitan-district-council/wolverhampton","AMZN MKTP UK AMAZON.CO","6.86","Members Expenses","5942","Equipment - Purchase","03/09/2018"
"Wolverhampton City Council","http://opendatacommunities.org/id/metropolitan-district-council/wolverhampton","QBIC HOTEL LONDON CITY","68.68","LAC Transitions Team","7011","Client Allowances","03/09/2018"
"Wolverhampton City Council","http://opendatacommunities.org/id/metropolitan-district-council/wolverhampton","BCC REGISTER OFFIC","28.50","Adoption and Residence Team & Allowances","9399","Services - Fees and Charges","03/09/2018"
"Wolverhampton City Council","http://opendatacommunities.org/id/metropolitan-district-council/wolverhampton","Amazon.co.uk","173.32","Strategic ICTS (ICT Serv Budget)","5969","Equipment - Purchase","03/09/2018"
"Wolverhampton City Council","http://opendatacommunities.org/id/metropolitan-district-council/wolverhampton","Amazon Prime","7.99","Central Baths","5968","Subscriptions","03/09/2018"
"Wolverhampton City Council","http://opendatacommunities.org/id/metropolitan-district-council/wolverhampton","ASDA GROCERIES ONLINE","-1.50","Upper Pendeford Farm Childrens Home","5411","Provisions (Not for resale)","03/09/2018"
"Wolverhampton City Council","http://opendatacommunities.org/id/metropolitan-district-council/wolverhampton","ASDA GROCERIES ONLINE","210.28","Upper Pendeford Farm Childrens Home","5411","Provisions (Not for resale)","03/09/2018"
"Wolverhampton City Council","http://opendatacommunities.org/id/metropolitan-district-council/wolverhampton","Virgin Trains","99.00","LAC Team","4112","Public Transport","03/09/2018"
"Wolverhampton City Council","http://opendatacommunities.org/id/metropolitan-district-council/wolverhampton","TAXICODE","85.50","LAC Team","5734","Financial Assistance In Exceptional Circ","03/09/2018"
"Wolverhampton City Council","http://opendatacommunities.org/id/metropolitan-district-council/wolverhampton","TAXICODE","85.50","LAC Team","5734","Financial Assistance In Exceptional Circ","03/09/2018"
"Wolverhampton City Council","http://opendatacommunities.org/id/metropolitan-district-council/wolverhampton","TAXICODE","85.50","LAC Team","5734","Financial Assistance In Exceptional Circ","03/09/2018"
"Wolverhampton City Council","http://opendatacommunities.org/id/metropolitan-district-council/wolverhampton","TAXICODE","85.50","LAC Team","5734","Financial Assistance In Exceptional Circ","03/09/2018"
"Wolverhampton City Council","http://opendatacommunities.org/id/metropolitan-district-council/wolverhampton","WOLVES FC","24.00","Archives","7997","Books","03/09/2018"
"Wolverhampton City Council","http://opendatacommunities.org/id/metropolitan-district-council/wolverhampton","Trainline","17.95","Archives","4112","Public Transport","03/09/2018"
"Wolverhampton City Council","http://opendatacommunities.org/id/metropolitan-district-council/wolverhampton","WM MORRISON 024","4.23","Ernest Bold Court","5411","Provisions (Not for resale)","03/09/2018"
"Wolverhampton City Council","http://opendatacommunities.org/id/metropolitan-district-council/wolverhampton","THE RED HOUSE","-39.98","Connexions Contract","5691","Equipment - Purchase","03/09/2018"
"Wolverhampton City Council","http://opendatacommunities.org/id/metropolitan-district-council/wolverhampton","AMZN MKTP UK AMAZON.CO","7.31","EIP Locality 1","5942","Catering","03/09/2018"
"Wolverhampton City Council","http://opendatacommunities.org/id/metropolitan-district-council/wolverhampton","Amazon Prime","6.66","Vulnerable Young Persons Team","5968","Subscriptions","03/09/2018"
"Wolverhampton City Council","http://opendatacommunities.org/id/metropolitan-district-council/wolverhampton","AMZN Mktp UK","45.75","Learning Disabilities Management","5942","Books","03/09/2018"
"Wolverhampton City Council","http://opendatacommunities.org/id/metropolitan-district-council/wolverhampton","AMZN Mktp UK","31.47","Learning Disabilities Management","5942","Books","03/09/2018"
"Wolverhampton City Council","http://opendatacommunities.org/id/metropolitan-district-council/wolverhampton","AMZN MKTP UK AMAZON.CO","28.74","Learning Disabilities Management","5942","Books","03/09/2018"
"Wolverhampton City Council","http://opendatacommunities.org/id/metropolitan-district-council/wolverhampton","PREMIER INN","99.50","SEN Sensory Inclusion","3811","Training Expenses","03/09/2018"
"Wolverhampton City Council","http://opendatacommunities.org/id/metropolitan-district-council/wolverhampton","AMZN Mktp UK","11.22","Children & Young People Support Costs","5942","Stationery","03/09/2018"
"Wolverhampton City Council","http://opendatacommunities.org/id/metropolitan-district-council/wolverhampton","Amazon Prime","6.66","Education Catering - General Overheads","5968","Subscriptions","03/09/2018"
"Wolverhampton City Council","http://opendatacommunities.org/id/metropolitan-district-council/wolverhampton","WIX.COM","46.57","Technical Support","5968","Subscriptions","03/09/2018"
"Wolverhampton City Council","http://opendatacommunities.org/id/metropolitan-district-council/wolverhampton","FACEBK LQAF7G6H52","4.67","Visitor Economy - Development","7311","Marketing \ Non-staff advertising","03/09/2018"
"Wolverhampton City Council","http://opendatacommunities.org/id/metropolitan-district-council/wolverhampton","CUMMINGS BROTHERS LOCK","5.00","Caretakers Community Centre","7399","Equipment - R & M","03/09/2018"
"Wolverhampton City Council","http://opendatacommunities.org/id/metropolitan-district-council/wolverhampton","Wix.com","46.57","Technical Support","5817","Computing - Purchase of Software","03/09/2018"
"Wolverhampton City Council","http://opendatacommunities.org/id/metropolitan-district-council/wolverhampton","AMZN Mktp UK","21.25","Global Budgets","5942","Books","03/09/2018"
"Wolverhampton City Council","http://opendatacommunities.org/id/metropolitan-district-council/wolverhampton","AMZN Mktp UK","3.34","Global Budgets","5942","Books","03/09/2018"
"Wolverhampton City Council","http://opendatacommunities.org/id/metropolitan-district-council/wolverhampton","AMZN Mktp UK","27.27","Global Budgets","5942","Books","03/09/2018"
"Wolverhampton City Council","http://opendatacommunities.org/id/metropolitan-district-council/wolverhampton","B & Q 1243","6.00","Learning Disabilities Management","5211","Materials","03/09/2018"
"Wolverhampton City Council","http://opendatacommunities.org/id/metropolitan-district-council/wolverhampton","B & Q 1243","15.00","Learning Disabilities Management","5211","Materials","03/09/2018"
"Wolverhampton City Council","http://opendatacommunities.org/id/metropolitan-district-council/wolverhampton","Central Taxis Limited","8.50","LAC Team","4121","Public Transport","03/09/2018"
"Wolverhampton City Council","http://opendatacommunities.org/id/metropolitan-district-council/wolverhampton","TIMPSON LTD","24.00","Shopmobility","7251","Equipment - Purchase","03/09/2018"
"Wolverhampton City Council","http://opendatacommunities.org/id/metropolitan-district-council/wolverhampton","RIBA SERVICES","237.97","Capital Programme Team","5942","Books","03/09/2018"
"Wolverhampton City Council","http://opendatacommunities.org/id/metropolitan-district-council/wolverhampton","ASDA GROCERIES ONLINE","-.41","Ernest Bold Court","5411","Provisions (Not for resale)","03/09/2018"
"Wolverhampton City Council","http://opendatacommunities.org/id/metropolitan-district-council/wolverhampton","ASDA GROCERIES ONLINE","40.05","Ernest Bold Court","5411","Provisions (Not for resale)","03/09/2018"
"Wolverhampton City Council","http://opendatacommunities.org/id/metropolitan-district-council/wolverhampton","VAUXHALL WOLVERHAM","8.36","Fleet Management","7538","Equipment - Purchase","03/09/2018"
